2CCN - Level 2 Cost Centre Name,,9CCN - Level 9 Cost Centre Name,9CCC - Level 9 Cost Centre Code,9AN - Level 9 Account Name,9AC - Level 9 Account Code,Transaction Description,Date Paid,Transaction Reference,Analysed Amount,2AC - Level 2 Account Codes,Supplier Name,Supplier Code
Gloucester City Council,23UE,Cemeteries,HC300,Basic Pay - Temporary Staff,2751,STAFF W/E 20/09/15,01/10/2015,408414,275.66,NET,Premiere Employment Group Ltd,55468Z
Gloucester City Council,23UE,Cemeteries,HC300,Basic Pay - Temporary Staff,2751,STAFF W/E 20/09/15,01/10/2015,408415,439.88,NET,Premiere Employment Group Ltd,55468Z
Gloucester City Council,23UE,REDACTED,REDACTED,REDACTED,REDACTED,REDACTED,01/10/2015,REDACTED,588.52,NET,REDACTED,REDACTED
Gloucester City Council,23UE,REDACTED,REDACTED,REDACTED,REDACTED,REDACTED,01/10/2015,REDACTED,630,NET,REDACTED,REDACTED
Gloucester City Council,23UE,Off Street Car Parks,PP110,Rents,3200,rent OCT-DEC15,01/10/2015,408037,600,NET,Boots The Chemist,04540V
Gloucester City Council,23UE,Public Conveniences (Client),HI400,Contracted Services,6970,SIGNS,01/10/2015,408192,519.16,NET,Severn Signs Ltd,49841D
Gloucester City Council,23UE,Rugby World Cup,LT450,Fees For Services Received,5350,TOILET HIRE,01/10/2015,408408,370,NET,B & W Hire Ltd,55477Y
Gloucester City Council,23UE,The Arbor,HC501,Catering Provisions -Food,5110,food,01/10/2015,407587,93.87,NET,Janes Pantry,24500W
Gloucester City Council,23UE,The Arbor,HC501,Catering Provisions -Food,5110,food,01/10/2015,407981,208.01,NET,Janes Pantry,24500W
Gloucester City Council,23UE,The Arbor,HC501,Catering Provisions -Food,5110,FOOD,01/10/2015,407673,44.4,NET,Total Produce Gloucester,12645E
Gloucester City Council,23UE,The Arbor,HC501,Catering Provisions -Food,5110,FOOD,01/10/2015,407680,54.51,NET,Total Produce Gloucester,12645E
Gloucester City Council,23UE,The Arbor,HC501,Catering Provisions -Food,5110,FOOD,01/10/2015,407681,47.17,NET,Total Produce Gloucester,12645E
Gloucester City Council,23UE,The Arbor,HC501,Catering Provisions -Food,5110,FOOD,01/10/2015,407695,23.08,NET,Total Produce Gloucester,12645E
Gloucester City Council,23UE,The Arbor,HC501,Catering Provisions -Food,5110,FOOD,01/10/2015,407696,37.97,NET,Total Produce Gloucester,12645E
Gloucester City Council,23UE,The Arbor,HC501,Catering Provisions -Food,5110,FOOD,01/10/2015,407697,17.9,NET,Total Produce Gloucester,12645E
Gloucester City Council,23UE,The Arbor,HC501,Catering Provisions -Food,5110,FOOD,01/10/2015,407703,7.8,NET,Total Produce Gloucester,12645E
Gloucester City Council,23UE,The Arbor,HC501,Cleaning Materials,3600,cleaning,01/10/2015,403723,34.56,NET,Minster Cleaning Services,02158R
Gloucester City Council,23UE,Blackfriars,LA609,Charges For Services,9300,Sales of Artwork,02/10/2015,408614,92.86,NET,REDACTED,REDACTED
Gloucester City Council,23UE,Blackfriars,LA609,Sale Of Goods And Services,9230,Sales of Artwork,02/10/2015,408614,-10.09,NET,REDACTED,REDACTED
Gloucester City Council,23UE,REDACTED,REDACTED,REDACTED,REDACTED,REDACTED,02/10/2015,REDACTED,158,NET,REDACTED,REDACTED
Gloucester City Council,23UE,Cemeteries,HC300,Basic Pay - Temporary Staff,2751,STAFF W/E 13/09/15,02/10/2015,408182,445.74,NET,Premiere Employment Group Ltd,55468Z
Gloucester City Council,23UE,Civica Admin Charges,RT105,Postages,5400,ACCT 0870585007 W/E 18/09/15,02/10/2015,408333,1593.16,NET,Royal Mail S.Wales & South West,35830S
Gloucester City Council,23UE,REDACTED,REDACTED,REDACTED,REDACTED,REDACTED,02/10/2015,REDACTED,545,NET,REDACTED,REDACTED
Gloucester City Council,23UE,Docks Complex - Services,RB100,Service Charges,3020,HERBERT WAREHOUSE,02/10/2015,408076,48.75,NET,Wessex Products (Leasing) Ltd,03684C
Gloucester City Council,23UE,Internal Health & Safety,EH110,Other Minor Supplies Services,5590,training course,02/10/2015,408221,75,NET,Local Authority Event Organisers Group,13496M
Gloucester City Council,23UE,Investment Property,RB500,General Repair/Maint Buildings,3000,Aug-15,02/10/2015,408172,13271.7,NET,Rf Gardiner Limited,12299B
Gloucester City Council,23UE,Kings Quarter,RY146,Contract Payments,20,Kings Quarter Transport Hub,02/10/2015,408529,60000,CAP,Building Design Partnership Ltd,15758K
Gloucester City Council,23UE,Off Street Car Parks,PP110,Fees For Services Received,5350,AIRTIME,02/10/2015,408420,504.82,NET,Parkeon Ltd,03238G
Gloucester City Council,23UE,Public Conveniences (Client),HI400,Contracted Services,6970,Toilet Scheme September 2015,02/10/2015,408576,300,NET,The Warehouse Climbing Centre,11162S
Gloucester City Council,23UE,Public Conveniences (Client),HI400,Contracted Services,6970,Toilet Scheme September 2015,02/10/2015,408577,300,NET,Eastgate Shopping Centre,11026K
Gloucester City Council,23UE,Public Conveniences (Client),HI400,Contracted Services,6970,Toilet Scheme September 2015,02/10/2015,408578,300,NET,Samuel Smith Old Brewery,11161U
Gloucester City Council,23UE,Public Conveniences (Client),HI400,Contracted Services,6970,Toilet Scheme September 2015,02/10/2015,408579,300,NET,The New Inn,13079J
Gloucester City Council,23UE,Public Conveniences (Client),HI400,Contracted Services,6970,Toilet Scheme September 2015,02/10/2015,408580,300,NET,Fab And Faded,13265K
Gloucester City Council,23UE,Public Conveniences (Client),HI400,Contracted Services,6970,Toilet Scheme September 2015,02/10/2015,408581,300,NET,Shell Gloucestershire,11160W
Gloucester City Council,23UE,Public Conveniences (Client),HI400,Contracted Services,6970,Toilet Scheme September 2015,02/10/2015,408582,300,NET,Imperial Inn,13422U
Gloucester City Council,23UE,Public Conveniences (Client),HI400,Contracted Services,6970,Toilet Scheme September 2015,02/10/2015,408583,300,NET,Hucclecote Community Association,23020B
Gloucester City Council,23UE,REDACTED,REDACTED,REDACTED,REDACTED,REDACTED,02/10/2015,REDACTED,1500,NET,REDACTED,REDACTED
Gloucester City Council,23UE,Registration Of Electors,RS400,Fees For Services Received,5350,SIGNS,02/10/2015,408173,700,NET,Signet Signs Ltd,15563D
Gloucester City Council,23UE,Rugby World Cup,LT450,Fees For Services Received,5350,BARBICAN,02/10/2015,408349,2265.52,NET,Ken Pink Plant Hire Ltd,56884V
Gloucester City Council,23UE,Shopmobility,PE200,Maintenance Of Equipment,5030,REPAIRS,02/10/2015,408406,724.35,NET,Disabled Care & Mobility,12675V
Gloucester City Council,23UE,REDACTED,REDACTED,REDACTED,REDACTED,REDACTED,05/10/2015,REDACTED,100,NET,REDACTED,REDACTED
Gloucester City Council,23UE,REDACTED,REDACTED,REDACTED,REDACTED,REDACTED,05/10/2015,REDACTED,50,NET,REDACTED,REDACTED
Gloucester City Council,23UE,Crematorium,HC200,Fees For Services Received,5350,CREM FEES SEPT 2015,05/10/2015,408645,748.88,NET,Dr R W Bell,01571P
Gloucester City Council,23UE,Crematorium,HC200,Fees For Services Received,5350,CREM FEES SEPT 2015,05/10/2015,408646,657.2,NET,Dr D Martin,00890P
Gloucester City Council,23UE,Crematorium,HC200,Fees For Services Received,5350,CREM FEES SEPT 2015,05/10/2015,408647,673.52,NET,Dr C M Stretton,00306P
Gloucester City Council,23UE,Economic Development,FP300,Business Grant,7116,GRANT,05/10/2015,408550,500,NET,Blackfriars Wealth Management,15492B
Gloucester City Council,23UE,REDACTED,REDACTED,REDACTED,REDACTED,REDACTED,05/10/2015,REDACTED,665,CAP,REDACTED,REDACTED
Gloucester City Council,23UE,REDACTED,REDACTED,REDACTED,REDACTED,REDACTED,05/10/2015,REDACTED,400,NET,REDACTED,REDACTED
Gloucester City Council,23UE,REDACTED,REDACTED,REDACTED,REDACTED,REDACTED,05/10/2015,REDACTED,291.36,NET,REDACTED,REDACTED
Gloucester City Council,23UE,REDACTED,REDACTED,REDACTED,REDACTED,REDACTED,05/10/2015,REDACTED,400,NET,REDACTED,REDACTED
Gloucester City Council,23UE,Shopmobility,PE200,Cleaning Materials,3600,Sep-15,05/10/2015,408321,5.03,NET,Ocs Group Uk Limited T/A Cannon,06506A
Gloucester City Council,23UE,The Arbor,HC501,Catering Provisions -Food,5110,food,05/10/2015,408549,219.45,NET,Janes Pantry,24500W
Gloucester City Council,23UE,Tic Theatre Ticket Sales,LT107,Materials For Sale,5080,COLDER THAN HOLE,05/10/2015,408643,183,NET,Kings Theatre,54213X
Gloucester City Council,23UE,REDACTED,REDACTED,REDACTED,REDACTED,REDACTED,05/10/2015,REDACTED,112.5,NET,REDACTED,REDACTED
Gloucester City Council,23UE,Tic Theatre Ticket Sales,LT107,Sale Of Goods And Services,9230,COLDER THAN HOLE,05/10/2015,408643,-15.25,NET,Kings Theatre,54213X
Gloucester City Council,23UE,REDACTED,REDACTED,REDACTED,REDACTED,REDACTED,05/10/2015,REDACTED,-9.38,NET,REDACTED,REDACTED
Gloucester City Council,23UE,Utilities,PT502,Electricity Supply,3110,GROSVENOR HOUSE,05/10/2015,408343,27.9,NET,Corona Energy,09034T
Gloucester City Council,23UE,REDACTED,REDACTED,REDACTED,REDACTED,REDACTED,06/10/2015,REDACTED,100,NET,REDACTED,REDACTED
Gloucester City Council,23UE,REDACTED,REDACTED,REDACTED,REDACTED,REDACTED,06/10/2015,REDACTED,20,NET,REDACTED,REDACTED
Gloucester City Council,23UE,Business Transformation & Tech,RT700,Computer Hardware <5000,5420,Charges Aug - Sept 2015,06/10/2015,405557,80,NET,Virgin Media Payments Ltd,09376J
Gloucester City Council,23UE,Business Transformation & Tech,RT700,Computer Hardware <5000,5420,Lattitude E6540,06/10/2015,406515,619,NET,Dell Computers Corporation Ltd,55920C
Gloucester City Council,23UE,Business Transformation & Tech,RT700,Computer Hardware <5000,5420,PLX Encorepro,06/10/2015,406635,704.46,NET,Rocom,56066R
Gloucester City Council,23UE,Business Transformation & Tech,RT700,Computer Hardware <5000,5420,PLX VISTA,06/10/2015,406243,594.65,NET,Rocom,56066R
Gloucester City Council,23UE,Business Transformation & Tech,RT700,Computer Software <5000,5425,ASH RENEWAL,06/10/2015,407432,750,NET,Ncc Services Ltd,03054V
Gloucester City Council,23UE,Business Transformation & Tech,RT700,Internet Service Provider Fees,5429,ACCT 505653401 FOLK MUSEUM,06/10/2015,406867,80,NET,Virgin Media Payments Ltd,09376J
Gloucester City Council,23UE,Business Transformation & Tech,RT700,Internet Service Provider Fees,5429,ACCT 510738303 LIFT LINE,06/10/2015,407706,16.99,NET,Virgin Media Payments Ltd,09376J
Gloucester City Council,23UE,Business Transformation & Tech,RT700,Internet Service Provider Fees,5429,ACCT 510738402,06/10/2015,407708,33,NET,Virgin Media Payments Ltd,09376J
Gloucester City Council,23UE,Business Transformation & Tech,RT700,Internet Service Provider Fees,5429,ACCT 511159201,06/10/2015,407707,80,NET,Virgin Media Payments Ltd,09376J
Gloucester City Council,23UE,Business Transformation & Tech,RT700,Internet Service Provider Fees,5429,ACCT 513231401,06/10/2015,407456,39,NET,Virgin Media Payments Ltd,09376J
Gloucester City Council,23UE,Business Transformation & Tech,RT700,Telephones And Fax,5410,ACCT 291749,06/10/2015,407435,160,NET,Virgin Media Business,01869B
Gloucester City Council,23UE,Business Transformation & Tech,RT700,Telephones And Fax,5410,Aug-15,06/10/2015,407828,3948.11,NET,Gamma Business Communications,10260A
Gloucester City Council,23UE,Business Transformation & Tech,RT700,Telephones And Fax,5410,call charges,06/10/2015,407783,2100.09,NET,Gamma Business Communications,10260A
Gloucester City Council,23UE,Business Transformation & Tech,RT700,Telephones And Fax,5410,Call Charges,06/10/2015,405577,191.19,NET,Virgin Media Business,01869B
Gloucester City Council,23UE,Business Transformation & Tech,RT700,Telephones And Fax,5410,call charges JUL-AUG 2015,06/10/2015,406764,215.32,NET,Virgin Media Business,01869B
Gloucester City Council,23UE,Contact Centre,RB300,Postages,5400,ENVELOPES,06/10/2015,408664,164.72,NET,Encore Envelopes Ltd,13782H
Gloucester City Council,23UE,Contact Centre,RB300,Postages,5400,ENVELOPES,06/10/2015,408674,119.6,NET,Encore Envelopes Ltd,13782H
Gloucester City Council,23UE,Contact Centre,RB300,Stationery,5302,STATIONERY,06/10/2015,408650,103.79,NET,Lyreco Uk Ltd,11746G
Gloucester City Council,23UE,Contact Centre,RB300,Stationery,5302,STATIONERY,06/10/2015,408652,15.33,NET,Lyreco Uk Ltd,11746G
Gloucester City Council,23UE,Council Streetcare Team,HI101,General Repair/Maint Buildings,3000,Saturday Work,06/10/2015,408543,147.84,NET,Enterprise (Aol) Ltd,06695G
Gloucester City Council,23UE,REDACTED,REDACTED,REDACTED,REDACTED,REDACTED,06/10/2015,REDACTED,1152.12,NET,REDACTED,REDACTED
Gloucester City Council,23UE,REDACTED,REDACTED,REDACTED,REDACTED,REDACTED,06/10/2015,REDACTED,600,NET,REDACTED,REDACTED
Gloucester City Council,23UE,REDACTED,REDACTED,REDACTED,REDACTED,REDACTED,06/10/2015,REDACTED,100,NET,REDACTED,REDACTED
Gloucester City Council,23UE,REDACTED,REDACTED,REDACTED,REDACTED,REDACTED,06/10/2015,REDACTED,405,NET,REDACTED,REDACTED
Gloucester City Council,23UE,REDACTED,REDACTED,REDACTED,REDACTED,REDACTED,06/10/2015,REDACTED,460,NET,REDACTED,REDACTED
Gloucester City Council,23UE,Homelessness,CH120,Basic Pay - Temporary Staff,2751,temporary staff W/E 20/09/15,06/10/2015,408690,767.51,NET,James Andrews Recruitment Solutions,13636W
Gloucester City Council,23UE,Homelessness,CH120,Basic Pay - Temporary Staff,2751,temporary staff W/E 27/09/15,06/10/2015,408689,799.94,NET,James Andrews Recruitment Solutions,13636W
Gloucester City Council,23UE,Homelessness,CH120,Fees For Services Received,5350,Medical report,06/10/2015,408684,20.5,NET,Hadwen Medical Practice,59727U
Gloucester City Council,23UE,Homelessness,CH120,Fees For Services Received,5350,Medical report,06/10/2015,408681,20.5,NET,Gloucester City Health Centre,02093U
Gloucester City Council,23UE,REDACTED,REDACTED,REDACTED,REDACTED,REDACTED,06/10/2015,REDACTED,260,NET,REDACTED,REDACTED
Gloucester City Council,23UE,Homelessness Prevention,CH122,Basic Pay - Temporary Staff,2751,Temporary staff W/E 27/09/15,06/10/2015,408663,795.5,NET,Greenacre Recruitment Ltd,15817V
Gloucester City Council,23UE,National Express,LT105,Materials For Sale,5080,Sep-15,06/10/2015,408715,13604.25,NET,National Express Ltd,31455K
Gloucester City Council,23UE,National Express,LT105,Sale Of Goods And Services,9230,Sep-15,06/10/2015,408715,-1296.5,NET,National Express Ltd,31455K
Gloucester City Council,23UE,Off Street Car Parks,PP110,Buildings Insurance,3800,CAR PARK OFFICE,06/10/2015,408356,13.88,NET,Workman Llp,11021M
Gloucester City Council,23UE,Off Street Car Parks,PP110,Buildings Insurance,3800,EASTGATE CAR PARK,06/10/2015,408355,372.17,NET,Workman Llp,11021M
Gloucester City Council,23UE,Off Street Car Parks,PP110,Buildings Insurance,3800,PEDESTRIAN ACCESS,06/10/2015,408353,50.82,NET,Workman Llp,11021M
Gloucester City Council,23UE,Printing,RP103,Printing,5300,PRINTING,06/10/2015,408691,1175.37,NET,Alpha Colour Printers Ltd,00945B
Gloucester City Council,23UE,Procurement Management,RP100,Vocational Training,2970,training course 09/12/15,06/10/2015,408649,183.75,NET,Bip Solutions Ltd,14920L
Gloucester City Council,23UE,Procurement Management,RP100,Vocational Training,2970,training course 17/11/15,06/10/2015,408676,125,NET,Achilles Information Ltd,15844S
Gloucester City Council,23UE,Rehousing,CH111,Fees For Services Received,5350,Medical report,06/10/2015,408685,20.5,NET,Kingsholm Surgery,11948S
Gloucester City Council,23UE,Rugby World Cup,LT450,Fees For Services Received,5350,COMPERE,06/10/2015,408683,319.5,NET,The Forest Agency,16122F
Gloucester City Council,23UE,Rugby World Cup,LT450,Fees For Services Received,5350,HIRE 23/09/15,06/10/2015,408673,395,NET,B & W Hire Ltd,55477Y
Gloucester City Council,23UE,Rugby World Cup,LT450,Fees For Services Received,5350,TOILET HIRE,06/10/2015,408433,370,NET,B & W Hire Ltd,55477Y
Gloucester City Council,23UE,Tourism Marketing,LT100,Buildings Insurance,3800,Insurance Premium 15/16,06/10/2015,405975,602.33,NET,P W Fido & Associates,01210A
Gloucester City Council,23UE,Asset Management,RS300,Basic Pay - Temporary Staff,2751,Consultancy Services Sept 15,07/10/2015,408717,6750,NET,Ardley Associates,09369F
Gloucester City Council,23UE,Barbican Car Park,RB543,Maint Of Grounds - General,3030,BARBICAN,07/10/2015,408686,75,NET,Mpl Wrought Iron Llp,03907P
Gloucester City Council,23UE,Blackfriars,LA609,Security Services Fees,5351,Security Staff,07/10/2015,408754,25,NET,Nsgl Ltd (Security Acct),12539E
Gloucester City Council,23UE,Business Transformation & Tech,RT700,Computer Hardware <5000,5420,service contract 29/9/15 - 28/9/16,07/10/2015,408807,400,NET,Banking Automation Ltd,10352U
Gloucester City Council,23UE,Business Transformation & Tech,RT700,Computer Software Maintenance,5427,service contract 29/9/15 - 28/9/16,07/10/2015,408807,1000,NET,Banking Automation Ltd,10352U
Gloucester City Council,23UE,Cemeteries,HC300,Trade Refuse Tipping Fees,6297,skip exchange,07/10/2015,408811,420,NET,Allstone Sand & Gravel Aggregates Ltd,00940M
Gloucester City Council,23UE,Cemeteries,HC300,Trade Refuse Tipping Fees,6297,skip exchanges,07/10/2015,408810,1280,NET,Allstone Sand & Gravel Aggregates Ltd,00940M
Gloucester City Council,23UE,City Museum And Art Gallery,LM200,Operational Equipment <5000,5012,CARDS,07/10/2015,408319,330,NET,Pcd Plastic Cards Direct Ltd,15797Z
Gloucester City Council,23UE,City Museum And Art Gallery,LM200,Publications For Sale,5064,GOODS FOR RESALE,07/10/2015,407821,291.75,NET,The Puppet Company,14242N
Gloucester City Council,23UE,Client Revs & Bens Contract,RT240,Bailiffs Fees,5368,VAT on fees,07/10/2015,408808,0,NET,Phoenix Commercial Collections Ltd,13435J
Gloucester City Council,23UE,Community Safety Projects,FP500,Basic Pay - Temporary Staff,2751,temporary staff w/e 31/7/15,07/10/2015,408822,535.38,NET,Travail Employment Ltd,49371W
Gloucester City Council,23UE,Contact Centre,RB300,Other Minor Supplies Services,5590,Sep-15,07/10/2015,408656,65.33,NET,Office Response,09439K
Gloucester City Council,23UE,Contaminated Land,HE301,Fees For Services Received,5350,JUL15 contaminated land work,07/10/2015,408555,1839.6,NET,Bromsgrove District Council,15037G
Gloucester City Council,23UE,Countryside Unit,LP201,Maint Of Grounds - General,3030,Robinswood Hill Park,07/10/2015,408750,396,NET,Greenfields Garden Services Ltd,48130G
Gloucester City Council,23UE,Countryside Unit,LP201,Major R And M - Vehicles,4010,Case tractor repairs,07/10/2015,408806,841.76,NET,Cotswold Farm Machinery Ltd,14329Z
Gloucester City Council,23UE,Docks Complex - Castlemeads Cp,RB210,Contracted Services,6970,Sep-15,07/10/2015,408791,773.48,NET,Apcoa Parking (Uk) Ltd,09954M
Gloucester City Council,23UE,Docks Complex - Castlemeads Cp,RB210,Contracted Services,6970,Sep-15,07/10/2015,408792,130.54,NET,Apcoa Parking (Uk) Ltd,09954M
Gloucester City Council,23UE,Docks Complex - Castlemeads Cp,RB210,Contracted Services,6970,Sep-15,07/10/2015,408793,454.26,NET,Apcoa Parking (Uk) Ltd,09954M
Gloucester City Council,23UE,Docks Complex - Castlemeads Cp,RB210,Contracted Services,6970,Sep-15,07/10/2015,408794,2095.11,NET,Apcoa Parking (Uk) Ltd,09954M
Gloucester City Council,23UE,Docks Complex - Catering Servs,RB110,Operational Equipment <5000,5012,KITCHENWARE,07/10/2015,408417,116.81,NET,Nisbets,55372P
Gloucester City Council,23UE,Docks Complex - Services,RB100,General Repair/Maint Buildings,3000,Maintenance Aug - Oct 2015,07/10/2015,406000,578.46,NET,Gea Denco Ltd,57271C
Gloucester City Council,23UE,Docks Complex - Services,RB100,Lift Maintenance,3051,HKP,07/10/2015,408653,159.38,NET,Pickerings Europe Ltd,58816U
Gloucester City Council,23UE,General Works Fund,RY203,Capital Smoke Vents,29,GUILDHALL,07/10/2015,408796,740,CAP,Airvent Systems Limited,51073T
Gloucester City Council,23UE,Green Garden Waste,HI105,Basic Pay - Temporary Staff,2751,STAFF W/E 25/09/15,07/10/2015,408798,1661.96,NET,One To One Recruitment,04752H
Gloucester City Council,23UE,Guildhall Bar And Caf�,LA210,Catering Provisions -Food,5110,food,07/10/2015,408818,40,NET,Janes Pantry,24500W
Gloucester City Council,23UE,Guildhall Bar And Caf�,LA210,Catering Provisions -Food,5110,Food,07/10/2015,408757,196.96,NET,Woodward Foodservice,10714F
Gloucester City Council,23UE,Guildhall Bar And Caf�,LA210,Catering Provisions -Food,5110,Food,07/10/2015,408758,157.65,NET,Woodward Foodservice,10714F
Gloucester City Council,23UE,Guildhall Bar And Caf�,LA210,Catering Provisions -Food,5110,Food,07/10/2015,408759,90.12,NET,Woodward Foodservice,10714F
Gloucester City Council,23UE,Guildhall Bar And Caf�,LA210,Catering Provisions -Food,5110,FOOD,07/10/2015,408179,53.6,NET,Janes Pantry,24500W
Gloucester City Council,23UE,Guildhall Bar And Caf�,LA210,Catering Provisions -Food,5110,Fruit & Veg August 2015,07/10/2015,408755,151.15,NET,Woody'S Fruit & Veg,11798L
Gloucester City Council,23UE,REDACTED,REDACTED,REDACTED,REDACTED,REDACTED,07/10/2015,REDACTED,200,NET,REDACTED,REDACTED
Gloucester City Council,23UE,REDACTED,REDACTED,REDACTED,REDACTED,REDACTED,07/10/2015,REDACTED,390,NET,REDACTED,REDACTED
Gloucester City Council,23UE,REDACTED,REDACTED,REDACTED,REDACTED,REDACTED,07/10/2015,REDACTED,130,NET,REDACTED,REDACTED
Gloucester City Council,23UE,Guildhall Events,LA200,Security Services Fees,5351,Security Staff,07/10/2015,408754,1057.25,NET,Nsgl Ltd (Security Acct),12539E
Gloucester City Council,23UE,Health Administration,HA200,Other Minor Supplies Services,5590,SIGN,07/10/2015,408668,49.17,NET,Roots Coffee & Community Cic,13358B
Gloucester City Council,23UE,REDACTED,REDACTED,REDACTED,REDACTED,REDACTED,07/10/2015,REDACTED,400,NET,REDACTED,REDACTED
Gloucester City Council,23UE,Homelessness,CH120,Board And Lodging,5515,AUG15 voids,07/10/2015,408817,1283.04,NET,Gloucester City Homes,05244T
Gloucester City Council,23UE,Investment Property,RB500,General Repair/Maint Buildings,3000,service 01/10/15,07/10/2015,408797,82.8,NET,Mitchells (Gloucester) Ltd,30160U
Gloucester City Council,23UE,Investment Property,RB500,Lift Maintenance,3051,EASTGATE MARKET,07/10/2015,408654,168.75,NET,Pickerings Europe Ltd,58816U
Gloucester City Council,23UE,Investment Property,RB500,Lift Maintenance,3051,EASTGATE MARKET,07/10/2015,408655,151.25,NET,Pickerings Europe Ltd,58816U
Gloucester City Council,23UE,Off Street Car Parks,PP110,Contracted Services,6970,Sep-15,07/10/2015,408792,3532.27,NET,Apcoa Parking (Uk) Ltd,09954M
Gloucester City Council,23UE,Off Street Car Parks,PP110,Contracted Services,6970,Sep-15,07/10/2015,408795,11087.31,NET,Apcoa Parking (Uk) Ltd,09954M
Gloucester City Council,23UE,Parks Contract Management,LP100,Maint Of Grounds - General,3030,Horsbere Meadow - Spraying Knotweed,07/10/2015,408557,45,NET,Greenfields Garden Services Ltd,48130G
Gloucester City Council,23UE,Retail Market - Landlord,HM300,Advertising And Publicity,5702,Advertisement 24/09/15,07/10/2015,408552,73.04,NET,Local World Ltd,08556P
Gloucester City Council,23UE,Retail Market - Landlord,HM300,Trade Refuse Collection,3630,Sep-15,07/10/2015,408789,120,NET,B & S Pointon Ltd,06253G
Gloucester City Council,23UE,Rugby World Cup,LT450,Fees For Services Received,5350,ST OSWALDS,07/10/2015,408348,87.5,NET,Ken Pink Plant Hire Ltd,56884V
Gloucester City Council,23UE,Blackfriars,LA609,Contract Cleaning,3620,Blackfriars clearning SEP15,08/10/2015,408548,455,NET,Into Cleaning,14609P
Gloucester City Council,23UE,Business Transformation & Tech,RT700,Computer Hardware <5000,5420,PHILLIPS,08/10/2015,408804,369,NET,Qual Technology,56512N
Gloucester City Council,23UE,Business Transformation & Tech,RT700,Computer Software <5000,5425,ALCHEMY MIGRATION,08/10/2015,408671,3000,NET,Northgate Public Services Uk Ltd,08982S
Gloucester City Council,23UE,Cemeteries,HC300,Basic Pay - Temporary Staff,2751,STAFF W/E 13/09/15,08/10/2015,408181,451.61,NET,Premiere Employment Group Ltd,55468Z
Gloucester City Council,23UE,Cemeteries,HC300,Clothing,5200,workwear,08/10/2015,408547,104.01,NET,Safpro Industrial Supply Co,39190W
Gloucester City Council,23UE,Cemeteries,HC300,Clothing,5200,workwear,08/10/2015,408554,219.95,NET,Safpro Industrial Supply Co,39190W
Gloucester City Council,23UE,Countryside Unit,LP201,Membership Fees,9483,Membership & Cattle Registration,08/10/2015,408866,129.36,NET,Dexter Cattle Society,06427X
Gloucester City Council,23UE,Homelessness,CH120,Basic Pay - Temporary Staff,2751,temporary staff w/e 13/9/15,08/10/2015,408865,843.18,NET,James Andrews Recruitment Solutions,13636W
Gloucester City Council,23UE,Investment Property,RB500,General Repair/Maint Buildings,3000,service extract fan number 6,08/10/2015,408133,92.3,NET,Mitchells (Gloucester) Ltd,30160U
Gloucester City Council,23UE,Investment Property,RB500,General Repair/Maint Buildings,3000,Westgate St car park toilets work,08/10/2015,408821,110,NET,Three Counties Drain Service,44033V
Gloucester City Council,23UE,Nms Contract,HI102,Contracted Services,6970,Oct-15,08/10/2015,408670,487452.09,NET,Enterprise (Aol) Ltd,06695G
Gloucester City Council,23UE,Nms Contract,HI102,Contracted Services,6970,Sep-15,08/10/2015,408667,487452.09,NET,Enterprise (Aol) Ltd,06695G
Gloucester City Council,23UE,Parks Contract Management,LP100,Maint Of Grounds - General,3030,SIGN,08/10/2015,408665,20,NET,Severn Signs Ltd,49841D
Gloucester City Council,23UE,Registration Of Electors,RS400,Printing,5300,HEF Form Mailing,08/10/2015,408718,3317,NET,Alpha Response Print & Mail Ltd,03029U
Gloucester City Council,23UE,Registration Of Electors,RS400,Printing,5300,SEP15 IER mailings,08/10/2015,408809,356.31,NET,Alpha Response Print & Mail Ltd,03029U
Gloucester City Council,23UE,Armscroft Park Flood Mit S106,LY153,Contract Payments,20,Armscroft Park - Grass Seeding,09/10/2015,408727,110,CAP,Greenfields Garden Services Ltd,48130G
Gloucester City Council,23UE,Blackfriars Catering,LA220,Catering Provisions -Liquor,5111,drinks,09/10/2015,408741,387.02,NET,Cellar Supplies Cheltenham Ltd,01563L
Gloucester City Council,23UE,Blackfriars Catering,LA220,Catering Provisions -Liquor,5111,drinks for Blackfriars,09/10/2015,408888,107.4,NET,Cellar Supplies Cheltenham Ltd,01563L
Gloucester City Council,23UE,City Centre Cctv System,PY275,Contract Payments,20,WASTE DISPOSAL,09/10/2015,408648,345,CAP,Archer Recycling,11021G
Gloucester City Council,23UE,Civica It Contract,RT270,Contracted Services,6970,IT Service Charges November 2015,09/10/2015,408734,47916.67,NET,Civica Uk Ltd,10841X
Gloucester City Council,23UE,Civica It Contract,RT270,Contracted Services,6970,Pensions AUG15,09/10/2015,408890,414.53,NET,Civica Uk Ltd,10841X
Gloucester City Council,23UE,Client Revs & Bens Contract,RT240,Fees For Services Received,5350,for arrest of Ctax/NDR defaulters,09/10/2015,408895,49.5,NET,Assevarate Ltd,11749A
Gloucester City Council,23UE,Council Streetcare Team,HI101,Maint Of Grounds - General,3030,Gloucester Park,09/10/2015,408729,525,NET,Greenfields Garden Services Ltd,48130G
Gloucester City Council,23UE,Disabled Facilities Grants,CY013,Disabled Facility Grants,74,MDF5105,09/10/2015,408899,19415.22,CAP,Mears Home Improvement Ltd,00096G
Gloucester City Council,23UE,Disabled Facilities Grants,CY013,Disabled Facility Grants,74,MDF5133,09/10/2015,408900,4488.11,CAP,Mears Home Improvement Ltd,00096G
Gloucester City Council,23UE,Disabled Facilities Grants,CY013,Disabled Facility Grants,74,MDF5161,09/10/2015,408901,1649.44,CAP,Tpg Disableaids,51324R
Gloucester City Council,23UE,Docks Complex - Castlemeads Cp,RB210,Security Services Fees,5351,Castlemeads car park security,09/10/2015,408816,150,NET,Glevum Security Ltd,03249B
Gloucester City Council,23UE,Docks Complex - Catering Servs,RB110,Catering Provisions -Food,5110,FOOD,09/10/2015,407461,13.05,NET,Janes Pantry,24500W
Gloucester City Council,23UE,Docks Complex - Catering Servs,RB110,Catering Provisions -Food,5110,FOOD,09/10/2015,407483,7.53,NET,Janes Pantry,24500W
Gloucester City Council,23UE,Docks Complex - Catering Servs,RB110,Catering Provisions -Food,5110,FOOD,09/10/2015,407484,14.66,NET,Janes Pantry,24500W
Gloucester City Council,23UE,Docks Complex - Catering Servs,RB110,Catering Provisions -Food,5110,FOOD,09/10/2015,407485,18.67,NET,Janes Pantry,24500W
Gloucester City Council,23UE,Docks Complex - Catering Servs,RB110,Catering Provisions -Food,5110,FOOD,09/10/2015,408001,13.05,NET,Janes Pantry,24500W
Gloucester City Council,23UE,Docks Complex - Catering Servs,RB110,Catering Provisions -Food,5110,FOOD,09/10/2015,408002,6.55,NET,Janes Pantry,24500W
Gloucester City Council,23UE,Docks Complex - Catering Servs,RB110,Catering Provisions -Food,5110,FOOD,09/10/2015,408003,18.25,NET,Janes Pantry,24500W
Gloucester City Council,23UE,Docks Complex - Catering Servs,RB110,Catering Provisions -Food,5110,FOOD,09/10/2015,408004,13.23,NET,Janes Pantry,24500W
Gloucester City Council,23UE,Docks Complex - Catering Servs,RB110,Catering Provisions -Food,5110,FOOD,09/10/2015,408005,13.05,NET,Janes Pantry,24500W
Gloucester City Council,23UE,Docks Complex - Catering Servs,RB110,Catering Provisions -Food,5110,FOOD,09/10/2015,408006,10.48,NET,Janes Pantry,24500W
Gloucester City Council,23UE,Docks Complex - Catering Servs,RB110,Catering Provisions -Food,5110,FOOD,09/10/2015,408007,14.38,NET,Janes Pantry,24500W
Gloucester City Council,23UE,Docks Complex - Catering Servs,RB110,Catering Provisions -Food,5110,FOOD,09/10/2015,408008,11,NET,Janes Pantry,24500W
Gloucester City Council,23UE,Docks Complex - Catering Servs,RB110,Catering Provisions -Food,5110,FOOD,09/10/2015,408009,26.14,NET,Janes Pantry,24500W
Gloucester City Council,23UE,Environmental Planning,LM340,Holiiday/Flexi Outstanding,2982,Design Quality Seminar 30/09/15,09/10/2015,408434,50,NET,Oxford City Council,01374S
Gloucester City Council,23UE,Grants To Voluntary Sector,FG100,Members Allocation Fund,7100F,members allocation form Dallimore,09/10/2015,408943,50,NET,Podsmead Big Local,14952X
Gloucester City Council,23UE,Guildhall Bar And Caf�,LA210,Catering Provisions -Liquor,5111,drinks,09/10/2015,408742,177.96,NET,Cellar Supplies Cheltenham Ltd,01563L
Gloucester City Council,23UE,Guildhall Bar And Caf�,LA210,Catering Provisions -Liquor,5111,drinks,09/10/2015,408743,668.92,NET,Cellar Supplies Cheltenham Ltd,01563L
Gloucester City Council,23UE,Guildhall Bar And Caf�,LA210,Catering Provisions -Liquor,5111,drinks,09/10/2015,408744,1785.85,NET,Cellar Supplies Cheltenham Ltd,01563L
Gloucester City Council,23UE,Guildhall Bar And Caf�,LA210,Catering Provisions -Liquor,5111,beergas,09/10/2015,408737,10.54,NET,Boc Ltd,59172L
Gloucester City Council,23UE,REDACTED,REDACTED,REDACTED,REDACTED,REDACTED,09/10/2015,REDACTED,2334.73,NET,REDACTED,REDACTED
Gloucester City Council,23UE,REDACTED,REDACTED,REDACTED,REDACTED,REDACTED,09/10/2015,REDACTED,450,NET,REDACTED,REDACTED
Gloucester City Council,23UE,REDACTED,REDACTED,REDACTED,REDACTED,REDACTED,09/10/2015,REDACTED,272.72,NET,REDACTED,REDACTED
Gloucester City Council,23UE,Innsworth Lane Sports Pitches,LY079,Contract Payments,20,Innsworth Lane Playing Field,09/10/2015,408728,1689,CAP,Greenfields Garden Services Ltd,48130G
Gloucester City Council,23UE,Investment Property,RB500,Contracts,3720,Kings House 29/9/15-24/12/15,09/10/2015,408805,2655,NET,Alder King,15830U
Gloucester City Council,23UE,Investment Property,RB500,Contracts,3720,Kings House 29/9-24/12/15,09/10/2015,408814,2624.25,NET,Alder King,15830U
Gloucester City Council,23UE,REDACTED,REDACTED,REDACTED,REDACTED,REDACTED,09/10/2015,REDACTED,183.5,NET,REDACTED,REDACTED
Gloucester City Council,23UE,Marketing Gloucester Charges,RC433,Fees For Services Received,5350,GRANT FUNDING,09/10/2015,406091,43662.5,NET,Marketing Gloucester Ltd,08925E
Gloucester City Council,23UE,Marketing Gloucester Charges,RC433,Fees For Services Received,5350,STAFF,09/10/2015,406092,14912.25,NET,Marketing Gloucester Ltd,08925E
Gloucester City Council,23UE,Nms Contract,HI102,Fees For Services Received,5350,Professional Support Aug 2015,09/10/2015,408541,1508.41,NET,Somerset County Council,15963G
Gloucester City Council,23UE,Public Conveniences (Client),HI400,Contracted Services,6970,TOILET SCHEME 2015/16,09/10/2015,408907,300,NET,Moon And Food Company Ltd,11166H
Gloucester City Council,23UE,Registration Of Electors,RS400,Postages,5400,acct 0870585031 SEP15 canvas & IER,09/10/2015,408894,7838.67,NET,Royal Mail S.Wales & South West,35830S
Gloucester City Council,23UE,Registration Of Electors,RS400,Publications,5060,Schofields Election Law,09/10/2015,408897,185,NET,Thomson Reuters,43110M
Gloucester City Council,23UE,Public Conveniences (Client),HI400,Contracted Services,6970,Toilet Scheme September 2015,09/10/2015,408574,300,NET,REDACTED,REDACTED
Gloucester City Council,23UE,Blackfriars,LA609,Hire Of Equipment,5020,Chair Cover & Sash Hire,12/10/2015,408751,179.55,NET,Cotswold Chair Covers,13553B
Gloucester City Council,23UE,Business Planning & Performanc,RL500,Vocational Training,2970,Prince 2 course,12/10/2015,408938,829,NET,Knowledge Academy Ltd,13625B
Gloucester City Council,23UE,City Museum And Art Gallery,LM200,Advertising And Publicity,5702,Rugby statue 18/8/15,12/10/2015,408942,296,NET,Statueman Living Statues,15529D
Gloucester City Council,23UE,City Museum And Art Gallery,LM200,Sewerage And Environ Charges,3402,Hygiene Unit,12/10/2015,408736,43.95,NET,Ocs Group Uk Limited T/A Cannon,06506A
Gloucester City Council,23UE,Client Revs & Bens Contract,RT240,Bailiffs Fees,5368,CTAX FEES,12/10/2015,408661,154.72,NET,Bristow & Sutor,05450M
Gloucester City Council,23UE,Client Revs & Bens Contract,RT240,Bailiffs Fees,5368,Fees paid direct & VAT due,12/10/2015,408934,135.21,NET,Bristow & Sutor,05450M
Gloucester City Council,23UE,Client Revs & Bens Contract,RT240,Bailiffs Fees,5368,VAT on fees,12/10/2015,408933,0,NET,Bristow & Sutor,05450M
Gloucester City Council,23UE,Client Revs & Bens Contract,RT240,Bailiffs Fees,5368,VAT on fees,12/10/2015,408935,0,NET,Bristow & Sutor,05450M
Gloucester City Council,23UE,Client Revs & Bens Contract,RT240,Bailiffs Fees,5368,VAT ONLY INVOICE,12/10/2015,408662,0,NET,Bristow & Sutor,05450M
Gloucester City Council,23UE,Countryside Unit,LP201,General Repair/Maint Buildings,3000,Various Items,12/10/2015,408721,3.32,NET,Countrywide Farmers,55687J
Gloucester City Council,23UE,Countryside Unit,LP201,Livestock Foodstuff,5841,Various Items,12/10/2015,408721,27.98,NET,Countrywide Farmers,55687J
Gloucester City Council,23UE,Countryside Unit,LP201,Maint Of Grounds - General,3030,Various Items,12/10/2015,408721,12.56,NET,Countrywide Farmers,55687J
Gloucester City Council,23UE,Countryside Unit,LP201,Overtime -Building Maint Staff,1303,Various Items,12/10/2015,408721,37.65,NET,Countrywide Farmers,55687J
Gloucester City Council,23UE,Docks Complex - Catering Servs,RB110,Catering Provisions -Food,5110,FOOD,12/10/2015,407938,52.88,NET,Total Produce Gloucester,12645E
Gloucester City Council,23UE,REDACTED,REDACTED,REDACTED,REDACTED,REDACTED,12/10/2015,REDACTED,700,NET,REDACTED,REDACTED
Gloucester City Council,23UE,General Drainage Works,PY241,Contract Payments,20,PLP Survey,12/10/2015,408749,500,CAP,Rab Consultants,13415R
Gloucester City Council,23UE,Guildhall Bar And Caf�,LA210,Catering Provisions -Food,5110,Icecream Tubs,12/10/2015,408740,27,NET,Winstones Ice Cream Ltd,56347D
Gloucester City Council,23UE,Guildhall Bar And Caf�,LA210,Catering Provisions -Liquor,5111,Gloucester Gold,12/10/2015,408745,114,NET,Gloucester Brewery,13373F
Gloucester City Council,23UE,Guildhall Bar And Caf�,LA210,Hire Of Equipment,5020,Stock Audit 10/09/15,12/10/2015,408739,90,NET,Fea Audits,08888J
Gloucester City Council,23UE,REDACTED,REDACTED,REDACTED,REDACTED,REDACTED,12/10/2015,REDACTED,108.35,NET,REDACTED,REDACTED
Gloucester City Council,23UE,REDACTED,REDACTED,REDACTED,REDACTED,REDACTED,12/10/2015,REDACTED,106.09,NET,REDACTED,REDACTED
Gloucester City Council,23UE,Homelessness,CH120,Rent In Advance,5516,REDACTED,12/10/2015,408948,489.44,NET,Surelet,06858N
Gloucester City Council,23UE,Homelessness Prevention,CH122,Fees For Services Received,5350,REDACTED,12/10/2015,408948,500,NET,Surelet,06858N
Gloucester City Council,23UE,Internal Health & Safety,EH110,Other Minor Supplies Services,5590,dipslides,12/10/2015,408936,11.89,NET,Hydro-X Water Treatment Ltd,11765C
Gloucester City Council,23UE,Investment Property,RB500,Repair/Maint Of Fixed Plant,3006,cold room no 5,12/10/2015,408937,29.26,NET,Mitchells (Gloucester) Ltd,30160U
Gloucester City Council,23UE,Rugby World Cup,LT450,Fees For Services Received,5350,Toilet Hire,12/10/2015,408720,420,NET,B & W Hire Ltd,55477Y
Gloucester City Council,23UE,Shopmobility,PE200,Cleaning Materials,3600,Hygiene Units,12/10/2015,408738,12.14,NET,Ocs Group Uk Limited T/A Cannon,06506A
Gloucester City Council,23UE,Vehicles,RS140,Fuel,4012,fuel,12/10/2015,408883,197.23,NET,Allstar Business Solutions Ltd (Arval),06594A
Gloucester City Council,23UE,Vehicles,RS140,Fuel,4012,Fuel,12/10/2015,408753,178.81,NET,Allstar Business Solutions Ltd (Arval),06594A
Gloucester City Council,23UE,Vehicles,RS140,Routine R And M - Vehicles,4011,Fleetwide 4 15/16,12/10/2015,408940,416.5,NET,Automobile Association,58743W
Gloucester City Council,23UE,REDACTED,REDACTED,REDACTED,REDACTED,REDACTED,13/10/2015,REDACTED,50,NET,REDACTED,REDACTED
Gloucester City Council,23UE,City Museum And Art Gallery,LM200,Uniforms,5201,POLOSHIRTS,13/10/2015,406751,26.52,NET,Alexandra,50586R
Gloucester City Council,23UE,Council Streetcare Team,HI101,Maint Of Grounds - General,3030,PLOCK COURT,13/10/2015,403764,342.8,NET,Greenfields Garden Services Ltd,48130G
Gloucester City Council,23UE,Events,LT410,Advertising And Publicity,5702,August weekend event leaflets,13/10/2015,408864,203,NET,Alpha Response Print & Mail Ltd,03029U
Gloucester City Council,23UE,Guildhall Bar And Caf�,LA210,Catering Provisions -Food,5110,Milk,13/10/2015,409004,4.6,NET,Total Produce Gloucester,12645E
Gloucester City Council,23UE,Guildhall Bar And Caf�,LA210,Catering Provisions -Food,5110,Milk,13/10/2015,409005,4.6,NET,Total Produce Gloucester,12645E
Gloucester City Council,23UE,Guildhall Bar And Caf�,LA210,Catering Provisions -Food,5110,Milk,13/10/2015,409006,4.6,NET,Total Produce Gloucester,12645E
Gloucester City Council,23UE,Guildhall Bar And Caf�,LA210,Catering Provisions -Food,5110,Milk,13/10/2015,409007,4.6,NET,Total Produce Gloucester,12645E
Gloucester City Council,23UE,Guildhall Bar And Caf�,LA210,Catering Provisions -Food,5110,Milk,13/10/2015,409008,4.6,NET,Total Produce Gloucester,12645E
Gloucester City Council,23UE,Guildhall Bar And Caf�,LA210,Catering Provisions -Food,5110,Milk,13/10/2015,409009,4.6,NET,Total Produce Gloucester,12645E
Gloucester City Council,23UE,Guildhall Bar And Caf�,LA210,Catering Provisions -Food,5110,Milk,13/10/2015,409010,4.6,NET,Total Produce Gloucester,12645E
Gloucester City Council,23UE,Guildhall Bar And Caf�,LA210,Catering Provisions -Food,5110,Milk,13/10/2015,409011,4.6,NET,Total Produce Gloucester,12645E
Gloucester City Council,23UE,Guildhall Bar And Caf�,LA210,Catering Provisions -Food,5110,Milk,13/10/2015,409012,4.6,NET,Total Produce Gloucester,12645E
Gloucester City Council,23UE,Guildhall Bar And Caf�,LA210,Catering Provisions -Food,5110,Milk,13/10/2015,409013,4.6,NET,Total Produce Gloucester,12645E
Gloucester City Council,23UE,Guildhall Bar And Caf�,LA210,Catering Provisions -Food,5110,Milk,13/10/2015,409014,4.6,NET,Total Produce Gloucester,12645E
Gloucester City Council,23UE,Guildhall Bar And Caf�,LA210,Catering Provisions -Food,5110,Milk,13/10/2015,409015,4.6,NET,Total Produce Gloucester,12645E
Gloucester City Council,23UE,Guildhall Bar And Caf�,LA210,Catering Provisions -Food,5110,Milk,13/10/2015,409016,4.6,NET,Total Produce Gloucester,12645E
Gloucester City Council,23UE,Guildhall Bar And Caf�,LA210,Catering Provisions -Food,5110,Milk,13/10/2015,409017,4.6,NET,Total Produce Gloucester,12645E
Gloucester City Council,23UE,Guildhall Bar And Caf�,LA210,Catering Provisions -Food,5110,Milk,13/10/2015,409018,4.6,NET,Total Produce Gloucester,12645E
Gloucester City Council,23UE,Guildhall Bar And Caf�,LA210,Catering Provisions -Food,5110,Milk,13/10/2015,409019,4.6,NET,Total Produce Gloucester,12645E
Gloucester City Council,23UE,Guildhall Bar And Caf�,LA210,Catering Provisions -Food,5110,Milk,13/10/2015,409020,4.6,NET,Total Produce Gloucester,12645E
Gloucester City Council,23UE,Homelessness Prevention,CH122,Basic Pay - Temporary Staff,2751,temporary staff w/e 2/10/15,13/10/2015,409003,795.5,NET,Greenacre Recruitment Ltd,15817V
Gloucester City Council,23UE,Parks Contract Management,LP100,Maint Of Grounds - General,3030,spray knotweed at Horsbere Meadow,13/10/2015,408973,45,NET,Greenfields Garden Services Ltd,48130G
Gloucester City Council,23UE,Parks Contract Management,LP100,Maint Of Grounds - General,3030,spray knotweed at Horsbere Meadow,13/10/2015,408974,45,NET,Greenfields Garden Services Ltd,48130G
Gloucester City Council,23UE,Retail Market - Landlord,HM300,Basic Pay -Duty Managers,1501,LAMP,13/10/2015,408438,40.7,NET,City Electrical Factors,09325C
Gloucester City Council,23UE,Superbreak,LT104,Materials For Sale,5080,28/09/2015 - Travelodge Gatwick Central,13/10/2015,408733,57.5,NET,Superbreak Mini Holidays,00712D
Gloucester City Council,23UE,Superbreak,LT104,Sale Of Goods And Services,9230,28/09/2015 - Travelodge Gatwick Central,13/10/2015,408733,-4.79,NET,Superbreak Mini Holidays,00712D
Gloucester City Council,23UE,Aspire Admin Charges,LC105,Contracted Services,6970,Oct-15,14/10/2015,409045,54792.25,NET,Aspire Sports & Cultural Trust,08135V
Gloucester City Council,23UE,Aspire Admin Charges,LC105,Fees For Services Received,5350,STAFF MEMBERSHIPS SEPT 2015,14/10/2015,409038,551,NET,Aspire Sports & Cultural Trust,08135V
Gloucester City Council,23UE,Aspire Admin Charges,LC105,Security Services Fees,5351,Nov-15,14/10/2015,409072,181.28,NET,G4s Cash Solutions (Uk) Ltd,04290V
Gloucester City Council,23UE,Business Grants,GY007,Contract Payments,20,GRANT,14/10/2015,409070,455,CAP,Darcy And Eliza Vintage Hire,16127V
Gloucester City Council,23UE,Business Planning & Performanc,RL500,Vocational Training,2970,Tuition Fee,14/10/2015,408978,2910,NET,Birmingham University,16124B
Gloucester City Council,23UE,Cemeteries,HC300,Maint Of Grounds - General,3030,PLANTS,14/10/2015,409068,570,NET,REDACTED,REDACTED
Gloucester City Council,23UE,Cemeteries,HC300,Operational Materials,5070,BOARDS,14/10/2015,409032,242.16,NET,Millington & Ramstedt Ltd,29815S
Gloucester City Council,23UE,Cemeteries,HC300,Trade Refuse Tipping Fees,6297,HIRE SEPT 2015,14/10/2015,409033,380,NET,Allstone Sand & Gravel Aggregates Ltd,00940M
Gloucester City Council,23UE,Cems/Crems Admin,HC100,Security Services Fees,5351,Nov-15,14/10/2015,409072,103.33,NET,G4s Cash Solutions (Uk) Ltd,04290V
Gloucester City Council,23UE,Cems/Crems Admin,HC100,Security Services Fees,5351,Sep-15,14/10/2015,409077,7.06,NET,G4s Cash Solutions (Uk) Ltd,04290V
Gloucester City Council,23UE,City Museum And Art Gallery,LM200,Exhibits And Collections,5038,"folding chairs, trolleys, folding tables",14/10/2015,409109,3270.98,NET,Church Buying Group,15771U
Gloucester City Council,23UE,City Museum And Art Gallery,LM200,Security Services Fees,5351,Nov-15,14/10/2015,409072,90.64,NET,G4s Cash Solutions (Uk) Ltd,04290V
Gloucester City Council,23UE,Civic Admin And Hospitality,RC210,Vehicle Hire,4050,BV65 SZW,14/10/2015,409065,2629.56,NET,Lookers Leasing Limited,15719W
Gloucester City Council,23UE,Client Revs & Bens Contract,RT240,Bailiffs Fees,5368,Recharge for Dukes Payment,14/10/2015,405559,300,NET,Civica Uk Ltd,10841X
Gloucester City Council,23UE,Client Revs & Bens Contract,RT240,Bailiffs Fees,5368,VAT ONLY INVOICE,14/10/2015,409046,0,NET,Phoenix Commercial Collections Ltd,13435J
Gloucester City Council,23UE,Contact Centre,RB300,Postages,5400,ENVELOPES,14/10/2015,409049,241.36,NET,Encore Envelopes Ltd,13782H
Gloucester City Council,23UE,Contact Centre,RB300,Stationery,5302,STATIONERY,14/10/2015,409061,63.38,NET,Lyreco Uk Ltd,11746G
Gloucester City Council,23UE,Contact Centre,RB300,Stationery,5302,STATIONERY,14/10/2015,409062,4.06,NET,Lyreco Uk Ltd,11746G
Gloucester City Council,23UE,Contact Centre,RB300,Stationery,5302,STATIONERY,14/10/2015,409063,14.99,NET,Lyreco Uk Ltd,11746G
Gloucester City Council,23UE,Corporate Reporting /Financing,RC504,Fees For Services Received,5350,Childcare vouchers,14/10/2015,408946,28.04,NET,Wider Plan Ltd ( Formerly Kiddivouchers),07893B
Gloucester City Council,23UE,Council Streetcare Team,HI101,Maint Of Grounds - General,3030,brass padlock,14/10/2015,409087,44.94,NET,Gloucester Locksmiths,18160C
Gloucester City Council,23UE,Council Streetcare Team,HI101,Maint Of Grounds - General,3030,CLOCK TOWER,14/10/2015,409035,100,NET,Greenfields Garden Services Ltd,48130G
Gloucester City Council,23UE,Council Streetcare Team,HI101,Maint Of Paths/Hardstandings,3056,Fieldcourt Openspace,14/10/2015,408533,942,NET,Greenfields Garden Services Ltd,48130G
Gloucester City Council,23UE,Crematorium,HC200,Memorial Plaques,5053,PLAQUE,14/10/2015,409060,108,NET,Arkell & Hurcombe,59812T
Gloucester City Council,23UE,Crematorium,HC200,Memorial Plaques,5053,PLAQUES,14/10/2015,409059,450,NET,Arkell & Hurcombe,59812T
Gloucester City Council,23UE,Development Management,PT200,Advertising And Publicity,5702,Adverts 8/10/15,14/10/2015,409093,146.08,NET,Local World Ltd,08556P
Gloucester City Council,23UE,Docks Complex - Services,RB100,Security Services Fees,5351,Nov-15,14/10/2015,409072,270.81,NET,G4s Cash Solutions (Uk) Ltd,04290V
Gloucester City Council,23UE,Docks Complex - Services,RB100,Security Services Fees,5351,Sep-15,14/10/2015,409077,3.52,NET,G4s Cash Solutions (Uk) Ltd,04290V
Gloucester City Council,23UE,Economic Development,FP300,Business Grant,7116,business rent grant first stage payment,14/10/2015,409105,500,NET,Cookes Coffee And Curios,16123D
Gloucester City Council,23UE,Flooding And Drainage,HE306,Maint Of Grounds - General,3030,DIMORE,14/10/2015,409034,90,NET,Rdb Safety Boat Ltd,13507J
Gloucester City Council,23UE,Folk Museum,LM210,Exhibits And Collections,5038,"Chairs, trolleys, folding tables",14/10/2015,409108,5739.47,NET,Church Buying Group,15771U
Gloucester City Council,23UE,Folk Museum,LM210,Security Services Fees,5351,Nov-15,14/10/2015,409072,90.64,NET,G4s Cash Solutions (Uk) Ltd,04290V
Gloucester City Council,23UE,Gloucester Guildhall,LA100,Security Services Fees,5351,Nov-15,14/10/2015,409072,90.64,NET,G4s Cash Solutions (Uk) Ltd,04290V
Gloucester City Council,23UE,Green Garden Waste,HI105,Basic Pay - Temporary Staff,2751,Temporary Staff w/e 02/10/2015,14/10/2015,409001,1929.88,NET,One To One Recruitment,04752H
Gloucester City Council,23UE,REDACTED,REDACTED,REDACTED,REDACTED,REDACTED,14/10/2015,REDACTED,150,NET,REDACTED,REDACTED
Gloucester City Council,23UE,REDACTED,REDACTED,REDACTED,REDACTED,REDACTED,14/10/2015,REDACTED,0,NET,REDACTED,REDACTED
Gloucester City Council,23UE,Guildhall Events,LA200,Fees For Services Received,5350,Lighting Engineer,14/10/2015,408995,160,NET,Leap Audio,15059W
Gloucester City Council,23UE,REDACTED,REDACTED,REDACTED,REDACTED,REDACTED,14/10/2015,REDACTED,550,NET,REDACTED,REDACTED
Gloucester City Council,23UE,Homelessness,CH120,Rent In Advance,5516,REDACTED,14/10/2015,409104,405.76,NET,Lloyds Pharmacy,16036Z
Gloucester City Council,23UE,Homelessness,CH120,Rent In Advance,5516,REDACTED,14/10/2015,409110,489.44,NET,REDACTED,REDACTED
Gloucester City Council,23UE,Homelessness Prevention,CH122,Fees For Services Received,5350,REDACTED,14/10/2015,409104,530,NET,Lloyds Pharmacy,16036Z
Gloucester City Council,23UE,Homelessness Prevention,CH122,Fees For Services Received,5350,REDACTED,14/10/2015,409110,530,NET,REDACTED,REDACTED
Gloucester City Council,23UE,REDACTED,REDACTED,REDACTED,REDACTED,REDACTED,14/10/2015,REDACTED,625,NET,REDACTED,REDACTED
Gloucester City Council,23UE,Housing Works In Default,HD500,Clearance And Cleansing Fees,5384,15 Sapperton Road,14/10/2015,408980,300,NET,Three Counties Drain Service,44033V
Gloucester City Council,23UE,Human Resources,EH100,Fees For Services Received,5350,Payroll Charges June 2015,14/10/2015,405356,2628.65,NET,Gloucestershire County Council,18650D
Gloucester City Council,23UE,Inhouse Training,EH200,Vocational Training,2970,CIPS Distance Learning,14/10/2015,408992,1199,NET,Chamber Business Training,16121H
Gloucester City Council,23UE,Investment Property,RB500,Asbestos Management Plan,3003,Eastgate Market store 71 survey,14/10/2015,407790,593,NET,Rex Bishop & Son Ltd,59058K
Gloucester City Council,23UE,Investment Property,RB500,Fire Alarm Maintenance,3053,Crem fire alarm OCT15-JAN16 maintenance,14/10/2015,408812,119.31,NET,Adt Fire & Security Plc,54086D
Gloucester City Council,23UE,Investment Property,RB500,General Repair/Maint Buildings,3000,Engineer 16/09/2015,14/10/2015,408986,79.9,NET,Adt Fire & Security Plc,54086D
Gloucester City Council,23UE,Investment Property,RB500,General Repair/Maint Buildings,3000,Engineer 19/08/2015,14/10/2015,408985,331,NET,Adt Fire & Security Plc,54086D
Gloucester City Council,23UE,Investment Property,RB500,Lift Maintenance,3051,CITY MUSEUM,14/10/2015,407023,121.25,NET,Pickerings Europe Ltd,58816U
Gloucester City Council,23UE,Investment Property,RB500,Lift Maintenance,3051,CITY MUSEUM,14/10/2015,409039,577.6,NET,Pickerings Europe Ltd,58816U
Gloucester City Council,23UE,Investment Property,RB500,Lift Maintenance,3051,FOLK MUSEUM,14/10/2015,407007,106.25,NET,Pickerings Europe Ltd,58816U
Gloucester City Council,23UE,Investment Property,RB500,Lift Maintenance,3051,sept-nov 2015,14/10/2015,407009,242.5,NET,Pickerings Europe Ltd,58816U
Gloucester City Council,23UE,Investment Property,RB500,Lift Maintenance,3051,sept-nov 2015,14/10/2015,407027,481.75,NET,Pickerings Europe Ltd,58816U
Gloucester City Council,23UE,Investment Property,RB500,Lift Maintenance,3051,sept-nov 2015,14/10/2015,407028,373.75,NET,Pickerings Europe Ltd,58816U
Gloucester City Council,23UE,Investment Property,RB500,Lift Maintenance,3051,sept-nov 2015,14/10/2015,407029,242.5,NET,Pickerings Europe Ltd,58816U
Gloucester City Council,23UE,Investment Property,RB500,Maintenance Of Equipment,5030,GL1 POOL FILTER INSPECTIONS,14/10/2015,408063,980,NET,Broadwater Technologies Ltd,15805C
Gloucester City Council,23UE,Parks Contract Management,LP100,Maint Of Grounds - General,3030,Coney Hill Park wors,14/10/2015,405683,168,NET,Greenfields Garden Services Ltd,48130G
Gloucester City Council,23UE,Play Area Refurbishment,LY071,Contract Payments,20,PICNIC TABLE,14/10/2015,409064,324,CAP,Centrewire Ltd,54156P
Gloucester City Council,23UE,Public Conveniences (Client),HI400,Contracted Services,6970,TOILET SCHEME 2015/16,14/10/2015,409031,300,NET,The Lamprey,15845K
Gloucester City Council,23UE,Rugby World Cup,LT450,Fees For Services Received,5350,Production Work,14/10/2015,408979,2500,NET,Impressionone,16131E
Gloucester City Council,23UE,Theatre Tokens,LT106,Materials For Sale,5080,Ticket Sales September 2015,14/10/2015,408998,285,NET,Society Of London Theatre,05656Z
Gloucester City Council,23UE,Theatre Tokens,LT106,Sale Of Goods And Services,9230,Ticket Sales September 2015,14/10/2015,408998,-14.25,NET,Society Of London Theatre,05656Z
Gloucester City Council,23UE,Tic Trading,LT110,Materials For Sale,5080,Images of Gloucestershire,14/10/2015,408982,50,NET,Inish Publications,10233D
Gloucester City Council,23UE,Tic Trading,LT110,Materials For Sale,5080,Key,14/10/2015,408983,331,NET,N & C Building Products Ltd,02054E
Gloucester City Council,23UE,REDACTED,REDACTED,REDACTED,REDACTED,REDACTED,14/10/2015,REDACTED,250,NET,REDACTED,REDACTED
Gloucester City Council,23UE,Tourism Marketing,LT100,Security Services Fees,5351,Nov-15,14/10/2015,409072,90.64,NET,G4s Cash Solutions (Uk) Ltd,04290V
Gloucester City Council,23UE,Unallocated It,RY525,Contract Payments,20,FINANCIAL SYSTEM,14/10/2015,408428,81940,CAP,Civica Uk Ltd,10841X
Gloucester City Council,23UE,Blackfriars,LA609,Contents Insurance,5700,advert in What to See and Do,15/10/2015,409164,225,NET,Marketing Gloucester Ltd,08925E
Gloucester City Council,23UE,Business Transformation & Tech,RT700,Computer Hardware <5000,5420,Dell Docking Spacer,15/10/2015,409091,13.9,NET,Dell Computers Corporation Ltd,55920C
Gloucester City Council,23UE,Business Transformation & Tech,RT700,Internet Service Provider Fees,5429,ACCT 814639,15/10/2015,408185,186.3,NET,Virgin Media Business,01869B
Gloucester City Council,23UE,Business Transformation & Tech,RT700,Mobile Phones,5409,Aug-15,15/10/2015,407534,1892.09,NET,Everything Everywhere Ltd (T-Mobile),57543S
Gloucester City Council,23UE,Business Transformation & Tech,RT700,Mobile Phones,5409,Aug-15,15/10/2015,407535,62.26,NET,Everything Everywhere Ltd (T-Mobile),57543S
Gloucester City Council,23UE,Business Transformation & Tech,RT700,Printing,5300,OCT-DEC 2015,15/10/2015,408077,107.76,NET,Stanford Marsh Ltd,51139M
Gloucester City Council,23UE,City Museum And Art Gallery,LM200,Publications For Sale,5064,GOODS FOR RESALE,15/10/2015,406238,170.45,NET,Ancestors Of Dover Ltd,15009M
Gloucester City Council,23UE,Civica Admin Charges,RT105,Fees For Services Received,5350,Subscription Advance,15/10/2015,408996,4,NET,Companies House,58954E
Gloucester City Council,23UE,REDACTED,REDACTED,REDACTED,REDACTED,REDACTED,15/10/2015,REDACTED,250,NET,REDACTED,REDACTED
Gloucester City Council,23UE,General Drainage Works,PY241,Contract Payments,20,Barnwood park works,15/10/2015,409162,1900,CAP,Three Counties Drain Service,44033V
Gloucester City Council,23UE,Grants To Voluntary Sector,FG100,Sla'S,7100B,SLA Advice Centres payment 3 of 4,15/10/2015,409167,18856,NET,Gloucester Law Centre,18157R
Gloucester City Council,23UE,REDACTED,REDACTED,REDACTED,REDACTED,REDACTED,15/10/2015,REDACTED,551,NET,REDACTED,REDACTED
Gloucester City Council,23UE,Grants To Voluntary Sector,FG100,Sla'S,7100B,SLA Advice centres payment 3 of 4,15/10/2015,409166,15432,NET,Gloucester & District Citizens Advice Bureau,07709Y
Gloucester City Council,23UE,Guildhall Events,LA200,Advertising And Publicity,5702,advert in What to See and Do,15/10/2015,409164,225,NET,Marketing Gloucester Ltd,08925E
Gloucester City Council,23UE,Guildhall Events,LA200,Fees For Services Received,5350,September newspapers,15/10/2015,409163,18.35,NET,W H Smith Ltd,40860M
Gloucester City Council,23UE,REDACTED,REDACTED,REDACTED,REDACTED,REDACTED,15/10/2015,REDACTED,120,NET,REDACTED,REDACTED
Gloucester City Council,23UE,REDACTED,REDACTED,REDACTED,REDACTED,REDACTED,15/10/2015,REDACTED,160,NET,REDACTED,REDACTED
Gloucester City Council,23UE,REDACTED,REDACTED,REDACTED,REDACTED,REDACTED,15/10/2015,REDACTED,368.2,NET,REDACTED,REDACTED
Gloucester City Council,23UE,Rugby World Cup,LT450,Fees For Services Received,5350,toilet hire for fanzone,15/10/2015,409165,470,NET,B & W Hire Ltd,55477Y
Gloucester City Council,23UE,The Arbor,HC501,Catering Provisions -Food,5110,food,15/10/2015,409092,28.74,NET,Janes Pantry,24500W
Gloucester City Council,23UE,Tree Planting Grant Funded,LY150,Contract Payments,20,LIBRARY,15/10/2015,400959,226,CAP,Greenfields Garden Services Ltd,48130G
Gloucester City Council,23UE,Utilities,PT502,Electricity Supply,3110,GROSVENOR HOUSE,15/10/2015,407368,763.17,NET,E.On,01484H
Gloucester City Council,23UE,Utilities,PT502,Electricity Supply,3110,UTILITIES TO OCT 2015,15/10/2015,409041,8202.76,NET,West Mercia Energy,11669Z
Gloucester City Council,23UE,Utilities,PT502,Electricity Supply,3110,YMCA,15/10/2015,408226,271.44,NET,British Gas Business,08301C
Gloucester City Council,23UE,Utilities,PT502,Gas Supply,3100,1 SEBERT ST,15/10/2015,408692,92.31,NET,British Gas Business,08301C
Gloucester City Council,23UE,Utilities,PT502,Gas Supply,3100,UTILITIES TO OCT 2015,15/10/2015,409041,804.58,NET,West Mercia Energy,11669Z
Gloucester City Council,23UE,Business Transformation & Tech,RT700,Internet Service Provider Fees,5429,ACCT 505653401 FOLK MUSEUM,16/10/2015,408224,80,NET,Virgin Media Payments Ltd,09376J
Gloucester City Council,23UE,Community Safety Projects,FP500,Basic Pay - Temporary Staff,2751,temporary staff W/E 02/10/15,16/10/2015,409052,491.58,NET,Travail Employment Ltd,49371W
Gloucester City Council,23UE,Contact Centre,RB300,Postages,5400,ACCT 0074842000 W/E 26/09/15,16/10/2015,409056,3483.64,NET,Royal Mail S.Wales & South West,35830S
Gloucester City Council,23UE,Contact Centre,RB300,Subscriptions,5600,ICS SERVICEMARK ASSESSMENT,16/10/2015,409172,2365.45,NET,Exemplas Ltd,10239R
Gloucester City Council,23UE,Disabled Facilities Grants,CY013,Disabled Facility Grants,74,MDF5174,16/10/2015,409173,1135,CAP,Stroud Stairlifts,10315A
Gloucester City Council,23UE,Docks Complex - Services,RB100,Recycling,3631,Recycling,16/10/2015,408722,14,NET,Printwaste Recycling,57114W
Gloucester City Council,23UE,Docks Complex - Services,RB100,Recycling,3631,Recycling,16/10/2015,408723,116.2,NET,Printwaste Recycling,57114W
Gloucester City Council,23UE,Docks Complex - Services,RB100,Recycling,3631,Recycling,16/10/2015,408725,196.2,NET,Printwaste Recycling,57114W
Gloucester City Council,23UE,REDACTED,REDACTED,REDACTED,REDACTED,REDACTED,16/10/2015,REDACTED,500,NET,REDACTED,REDACTED
Gloucester City Council,23UE,Grants To Voluntary Sector,FG100,Grants,7100C,Community Grant 2015/16,16/10/2015,409174,1700,NET,Abbeydale Community Association,50263V
Gloucester City Council,23UE,Green Garden Waste,HI105,Basic Pay - Temporary Staff,2751,temporary staff w/e 9/10/15,16/10/2015,409160,1987.3,NET,One To One Recruitment,04752H
Gloucester City Council,23UE,Homelessness,CH120,Board And Lodging,5515,various tenants,16/10/2015,409176,1634.21,NET,James Legge Property (Ltd),07844R
Gloucester City Council,23UE,Homelessness,CH120,Board And Lodging,5515,various tenants,16/10/2015,409179,811.3,NET,Carbrey Housing Ltd,11098G
Gloucester City Council,23UE,Homelessness,CH120,Board And Lodging,5515,various tenants,16/10/2015,409181,1077.15,NET,Dorchester Guest House,12298D
Gloucester City Council,23UE,REDACTED,REDACTED,REDACTED,REDACTED,REDACTED,16/10/2015,REDACTED,2397.2,NET,REDACTED,REDACTED
Gloucester City Council,23UE,REDACTED,REDACTED,REDACTED,REDACTED,REDACTED,16/10/2015,REDACTED,238.73,NET,REDACTED,REDACTED
Gloucester City Council,23UE,REDACTED,REDACTED,REDACTED,REDACTED,REDACTED,16/10/2015,REDACTED,5236.06,NET,REDACTED,REDACTED
Gloucester City Council,23UE,REDACTED,REDACTED,REDACTED,REDACTED,REDACTED,16/10/2015,REDACTED,1335.33,NET,REDACTED,REDACTED
Gloucester City Council,23UE,Investment Property,RB500,Lift Maintenance,3051,blackfriars,16/10/2015,407030,103.12,NET,Pickerings Europe Ltd,58816U
Gloucester City Council,23UE,Tic Stamp Sales,LT102,Postages,5400,International Postcard Stamp,16/10/2015,408987,180,NET,Universal Mail United Kingdom Ltd,14283Y
Gloucester City Council,23UE,Tree Planting Grant Funded,LY150,Contract Payments,20,SCOTT AVENUE,16/10/2015,401015,254,CAP,Greenfields Garden Services Ltd,48130G
Gloucester City Council,23UE,Tree Planting Grant Funded,LY150,Contract Payments,20,TREE WATERING,16/10/2015,400958,90,CAP,Greenfields Garden Services Ltd,48130G
Gloucester City Council,23UE,REDACTED,REDACTED,REDACTED,REDACTED,REDACTED,16/10/2015,REDACTED,260,NET,REDACTED,REDACTED
Gloucester City Council,23UE,23-25 Commercial Road,RB541,Consultants Fees,5349,fees re 23-25 Commercial Road,19/10/2015,409256,600,NET,Bruton Knowles,57534T
Gloucester City Council,23UE,Alney Island,PY128,Contract Payments,20,Alney island footpath works,19/10/2015,409242,347.5,CAP,Rf Gardiner Limited,12299B
Gloucester City Council,23UE,Alney Island,PY128,Contract Payments,20,Alney Island footpath works,19/10/2015,409243,34684.72,CAP,Rf Gardiner Limited,12299B
Gloucester City Council,23UE,Alney Island,PY128,Contract Payments,20,Alney Island footpath works,19/10/2015,409245,30262.18,CAP,Rf Gardiner Limited,12299B
Gloucester City Council,23UE,Alney Island,PY128,Contract Payments,20,Alney Island footpath works,19/10/2015,409246,6045,CAP,Rf Gardiner Limited,12299B
Gloucester City Council,23UE,Aspire Admin Charges,LC105,Other Minor Income,9900,BAILIFF 330.00/DEBTORS 15.00,19/10/2015,409269,345,NET,Aspire Sports & Cultural Trust,08135V
Gloucester City Council,23UE,Asset Management,RS300,Basic Pay - Temporary Staff,2751,SEP15 project engineer services,19/10/2015,409250,6186.8,NET,Ecostep Ltd,15511Z
Gloucester City Council,23UE,REDACTED,REDACTED,REDACTED,REDACTED,REDACTED,19/10/2015,REDACTED,5,NET,REDACTED,REDACTED
Gloucester City Council,23UE,Cctv Revenue Budget,FP501,Security Equipment Serv/Repair,3038,ANPR CAMERAS,19/10/2015,409054,5000,NET,"Police & Crime Commissioner, Gloucestershire",49521B
Gloucester City Council,23UE,City Museum And Art Gallery,LM200,Advertising And Publicity,5702,ADVERT,19/10/2015,409051,135,NET,Marketing Gloucester Ltd,08925E
Gloucester City Council,23UE,City Museum And Art Gallery,LM200,Educational Materials,5073,oil brushes,19/10/2015,409248,8.29,NET,The Consortium,10365J
Gloucester City Council,23UE,Civica Fod Contract,RT260,Contracted Services,6970,FOD Q4,19/10/2015,408669,189455.02,NET,Civica Uk Ltd,10841X
Gloucester City Council,23UE,Coll Fund Revenue Account,ZC100,County Council Precept,7460,precept payment November 2015,19/10/2015,409275,3893978.2,NET,Gloucestershire County Council,18650D
Gloucester City Council,23UE,Coll Fund Revenue Account,ZC100,Nndr Central Share,7474,BRR POOLING GC LOCAL SHARE,19/10/2015,409278,421339,NET,Gloucestershire County Council,18650D
Gloucester City Council,23UE,Coll Fund Revenue Account,ZC100,Nndr Tariff,7473,brr pooling payment,19/10/2015,409277,1320307,NET,Stroud District Council,74737T
Gloucester City Council,23UE,Coll Fund Revenue Account,ZC100,Police Precept,7461,precept payment Nov15,19/10/2015,409274,741766.3,NET,"Police & Crime Commissioner, Gloucestershire",49521B
Gloucester City Council,23UE,Countryside Unit,LP201,General Repair/Maint Buildings,3000,signs,19/10/2015,409267,170,NET,Werxco Limited,04432Z
Gloucester City Council,23UE,Countryside Unit,LP201,Operational Equipment <5000,5012,signs,19/10/2015,409267,408,NET,Werxco Limited,04432Z
Gloucester City Council,23UE,Economic Development,FP300,Other Minor Supplies Services,5590,set up & admin fee MAY15-APR16,19/10/2015,409258,3200,NET,Acorn T-Stats Ltd,15777F
Gloucester City Council,23UE,Employers Pension Contribs,ZR355,Pension Contribs Incl Backf,2901,pension deficit for GCC OCT15,19/10/2015,409276,217666.66,NET,Gloucestershire County Council,10614L
Gloucester City Council,23UE,Flood Defence Int Drain B Levy,PS111,South Glos. Drainage Board,7462,levy for 2015/16,19/10/2015,409273,25177.71,NET,Lower Severn Drainage Board,04918R
Gloucester City Council,23UE,Folk Museum,LM210,Advertising And Publicity,5702,ADVERT,19/10/2015,409051,135,NET,Marketing Gloucester Ltd,08925E
Gloucester City Council,23UE,Gloucester Guildhall,LA100,Cleaning Materials,3600,JUL-SEP15 service,19/10/2015,409249,148.2,NET,Ocs Group Uk Limited T/A Cannon,06506A
Gloucester City Council,23UE,Gloucester Guildhall,LA100,Maintenance Of Equipment,5030,lamps,19/10/2015,409251,32.7,NET,Directa Uk Ltd,05387T
Gloucester City Council,23UE,Grants To Voluntary Sector,FG100,Abcd Grants,7100A,ROOM HIRE 03/09/15,19/10/2015,409044,47,NET,Aspire Sports & Cultural Trust,08135V
Gloucester City Council,23UE,Grants To Voluntary Sector,FG100,Abcd Grants,7100A,ROOM HIRE 10/09/15,19/10/2015,409042,153,NET,Aspire Sports & Cultural Trust,08135V
Gloucester City Council,23UE,Grants To Voluntary Sector,FG100,Members Allocation Fund,7100F,MEMBERS ALLOCATION FUND BEELEY,19/10/2015,409241,849,NET,Hucclecote Rfc,16125Z
Gloucester City Council,23UE,REDACTED,REDACTED,REDACTED,REDACTED,REDACTED,19/10/2015,REDACTED,1000,NET,REDACTED,REDACTED
Gloucester City Council,23UE,REDACTED,REDACTED,REDACTED,REDACTED,REDACTED,19/10/2015,REDACTED,122.2,NET,REDACTED,REDACTED
Gloucester City Council,23UE,Hackney Carriages,HL100,Fees For Services Received,5350,AUG15 DBS checks,19/10/2015,407329,528,NET,Disclosure And Barring Service,00119W
Gloucester City Council,23UE,Hackney Carriages,HL100,Fees For Services Received,5350,CRBS,19/10/2015,406099,528,NET,Disclosure And Barring Service,00119W
Gloucester City Council,23UE,Hackney Carriages,HL100,Fees For Services Received,5350,CRBS,19/10/2015,406190,440,NET,Disclosure And Barring Service,00119W
Gloucester City Council,23UE,Hackney Carriages,HL100,Fees For Services Received,5350,Sep-15,19/10/2015,408688,264,NET,Disclosure And Barring Service,00119W
Gloucester City Council,23UE,Homelessness,CH120,Board And Lodging,5515,emergency accommodation,19/10/2015,409252,174,NET,Connolly And Callaghan Ltd,07565Y
Gloucester City Council,23UE,Homelessness,CH120,Board And Lodging,5515,emergency accommodation,19/10/2015,409253,58,NET,Connolly And Callaghan Ltd,07565Y
Gloucester City Council,23UE,Homelessness,CH120,Board And Lodging,5515,emergency accommodation,19/10/2015,409259,245,NET,Connolly And Callaghan Ltd,07565Y
Gloucester City Council,23UE,Human Resources,EH100,Fees For Services Received,5350,PAYROLL SEPT 2015,19/10/2015,409057,2628.65,NET,Gloucestershire County Council,18650D
Gloucester City Council,23UE,Interest Payable,VR100,Int On Other Temp. Borrowing,7811,INTEREST APR-SEPT 2015,19/10/2015,409268,195.13,NET,John Ward Trust,49282W
Gloucester City Council,23UE,Investment Property,RB500,Contracts,3720,Grosvenor House FEB15-DEC15,19/10/2015,409257,1148.2,NET,Alder King,15624J
Gloucester City Council,23UE,Kings Quarter,RY146,Contract Payments,20,Works - Kings Sqaure,19/10/2015,408756,45934.24,CAP,Talus Construction Ltd,10401G
Gloucester City Council,23UE,Public Health,HD200,Other Minor Supplies Services,5590,room hire 5/7/15,19/10/2015,409266,15,NET,Quedgeley Parish Council,48506G
Gloucester City Council,23UE,Public Health,HD200,Other Minor Supplies Services,5590,room hire AUG15,19/10/2015,409264,85,NET,Quedgeley Parish Council,48506G
Gloucester City Council,23UE,Public Health,HD200,Other Minor Supplies Services,5590,room hire JUL15,19/10/2015,409265,34,NET,Quedgeley Parish Council,48506G
Gloucester City Council,23UE,Public Health,HD200,Other Minor Supplies Services,5590,room hire SEP15,19/10/2015,409263,68,NET,Quedgeley Parish Council,48506G
Gloucester City Council,23UE,REDACTED,REDACTED,REDACTED,REDACTED,REDACTED,19/10/2015,REDACTED,8499.99,NET,REDACTED,REDACTED
Gloucester City Council,23UE,The Arbor,HC501,Cleaning Materials,3600,Jul-15,19/10/2015,404997,34.56,NET,Minster Cleaning Services,02158R
Gloucester City Council,23UE,The Arbor,HC501,Cleaning Materials,3600,SANITARY BIN,19/10/2015,406241,34.56,NET,Minster Cleaning Services,02158R
Gloucester City Council,23UE,The Arbor,HC501,Maint Agreements - Buildings,3010,DRINK,19/10/2015,408672,61.58,NET,Caffeica Ltd,11923J
Gloucester City Council,23UE,REDACTED,REDACTED,REDACTED,REDACTED,REDACTED,20/10/2015,REDACTED,875,NET,REDACTED,REDACTED
Gloucester City Council,23UE,Business Transformation & Tech,RT700,Fees For Services Received,5350,Sep-15,20/10/2015,409421,15796,NET,Civica Uk Ltd,10841X
Gloucester City Council,23UE,Civica Admin Charges,RT105,Postages,5400,ACCT 0870585007 W/E 02/10/15,20/10/2015,409055,1124.6,NET,Royal Mail S.Wales & South West,35830S
Gloucester City Council,23UE,Countryside Unit,LP201,Trade Refuse Sacks,5040,BIN,20/10/2015,409053,347.75,NET,Enterprise (Aol) Ltd,06695G
Gloucester City Council,23UE,Docks Complex - Catering Servs,RB110,Catering Provisions -Food,5110,FOOD,20/10/2015,409388,7.53,NET,Janes Pantry,24500W
Gloucester City Council,23UE,Docks Complex - Catering Servs,RB110,Catering Provisions -Food,5110,FOOD,20/10/2015,409389,9.74,NET,Janes Pantry,24500W
Gloucester City Council,23UE,Docks Complex - Catering Servs,RB110,Catering Provisions -Food,5110,FOOD,20/10/2015,409390,17.55,NET,Janes Pantry,24500W
Gloucester City Council,23UE,Docks Complex - Catering Servs,RB110,Catering Provisions -Food,5110,FOOD,20/10/2015,409391,16.28,NET,Janes Pantry,24500W
Gloucester City Council,23UE,Docks Complex - Catering Servs,RB110,Catering Provisions -Food,5110,FOOD,20/10/2015,409392,9.57,NET,Janes Pantry,24500W
Gloucester City Council,23UE,Docks Complex - Catering Servs,RB110,Catering Provisions -Food,5110,FOOD,20/10/2015,409393,11.91,NET,Janes Pantry,24500W
Gloucester City Council,23UE,Docks Complex - Catering Servs,RB110,Catering Provisions -Food,5110,FOOD,20/10/2015,409395,13.05,NET,Janes Pantry,24500W
Gloucester City Council,23UE,Docks Complex - Catering Servs,RB110,Catering Provisions -Food,5110,FOOD,20/10/2015,409397,8.64,NET,Total Produce Gloucester,12645E
Gloucester City Council,23UE,Docks Complex - Catering Servs,RB110,Catering Provisions -Food,5110,FOOD,20/10/2015,409398,9.69,NET,Total Produce Gloucester,12645E
Gloucester City Council,23UE,Docks Complex - Catering Servs,RB110,Catering Provisions -Food,5110,FOOD,20/10/2015,409399,67.23,NET,Total Produce Gloucester,12645E
Gloucester City Council,23UE,Docks Complex - Catering Servs,RB110,Catering Provisions -Food,5110,FOOD,20/10/2015,409400,25.02,NET,Total Produce Gloucester,12645E
Gloucester City Council,23UE,Docks Complex - Catering Servs,RB110,Catering Provisions -Food,5110,FOOD,20/10/2015,409401,20.03,NET,Total Produce Gloucester,12645E
Gloucester City Council,23UE,Docks Complex - Catering Servs,RB110,Catering Provisions -Food,5110,FOOD,20/10/2015,409402,20.56,NET,Total Produce Gloucester,12645E
Gloucester City Council,23UE,Docks Complex - Catering Servs,RB110,Catering Provisions -Food,5110,FOOD,20/10/2015,409403,27.59,NET,Total Produce Gloucester,12645E
Gloucester City Council,23UE,Docks Complex - Catering Servs,RB110,Catering Provisions -Food,5110,FOOD,20/10/2015,409404,8.64,NET,Total Produce Gloucester,12645E
Gloucester City Council,23UE,Docks Complex - Catering Servs,RB110,Catering Provisions -Food,5110,FOOD,20/10/2015,409405,45.78,NET,Total Produce Gloucester,12645E
Gloucester City Council,23UE,Docks Complex - Catering Servs,RB110,Catering Provisions -Food,5110,FOOD,20/10/2015,409406,41.97,NET,Total Produce Gloucester,12645E
Gloucester City Council,23UE,Docks Complex - Catering Servs,RB110,Catering Provisions -Food,5110,FOOD,20/10/2015,409407,10.62,NET,Total Produce Gloucester,12645E
Gloucester City Council,23UE,Docks Complex - Catering Servs,RB110,Catering Provisions -Food,5110,FOOD,20/10/2015,409408,41.88,NET,Total Produce Gloucester,12645E
Gloucester City Council,23UE,Docks Complex - Catering Servs,RB110,Catering Provisions -Food,5110,FOOD,20/10/2015,409409,28.32,NET,Total Produce Gloucester,12645E
Gloucester City Council,23UE,Docks Complex - Catering Servs,RB110,Catering Provisions -Food,5110,FOOD,20/10/2015,409410,15.84,NET,Total Produce Gloucester,12645E
Gloucester City Council,23UE,Docks Complex - Catering Servs,RB110,Catering Provisions -Food,5110,FOOD,20/10/2015,409411,31.85,NET,Total Produce Gloucester,12645E
Gloucester City Council,23UE,Docks Complex - Catering Servs,RB110,Catering Provisions -Food,5110,FOOD,20/10/2015,409413,12.75,NET,Bidvest Foodservice (3663),55585U
Gloucester City Council,23UE,Docks Complex - Catering Servs,RB110,Catering Provisions -Food,5110,FOOD,20/10/2015,409414,270.81,NET,Bidvest Foodservice (3663),55585U
Gloucester City Council,23UE,Docks Complex - Catering Servs,RB110,Catering Provisions -Food,5110,FOOD,20/10/2015,409415,377.43,NET,Bidvest Foodservice (3663),55585U
Gloucester City Council,23UE,Docks Complex - Catering Servs,RB110,Catering Provisions -Food,5110,FOOD,20/10/2015,409416,27.64,NET,Total Produce Gloucester,12645E
Gloucester City Council,23UE,Docks Complex - Catering Servs,RB110,Catering Provisions -Food,5110,FOOD,20/10/2015,409417,60.63,NET,Total Produce Gloucester,12645E
Gloucester City Council,23UE,Docks Complex - Catering Servs,RB110,Catering Provisions -Food,5110,FOOD,20/10/2015,409418,42.98,NET,Total Produce Gloucester,12645E
Gloucester City Council,23UE,Docks Complex - Catering Servs,RB110,Catering Provisions -Food,5110,FOOD,20/10/2015,409419,34.6,NET,Total Produce Gloucester,12645E
Gloucester City Council,23UE,Docks Complex - Catering Servs,RB110,Catering Provisions -Food,5110,FOOD,20/10/2015,409422,15.84,NET,Total Produce Gloucester,12645E
Gloucester City Council,23UE,Docks Complex - Catering Servs,RB110,Catering Provisions -Food,5110,FOOD,20/10/2015,409423,53.27,NET,Total Produce Gloucester,12645E
Gloucester City Council,23UE,Docks Complex - Catering Servs,RB110,Catering Provisions -Food,5110,FOOD,20/10/2015,409424,2.88,NET,Total Produce Gloucester,12645E
Gloucester City Council,23UE,Docks Complex - Catering Servs,RB110,Catering Provisions -Food,5110,FOOD,20/10/2015,409425,6.66,NET,Janes Pantry,24500W
Gloucester City Council,23UE,Docks Complex - Catering Servs,RB110,Catering Provisions -Food,5110,FOOD,20/10/2015,409426,17.24,NET,Janes Pantry,24500W
Gloucester City Council,23UE,Docks Complex - Catering Servs,RB110,Catering Provisions -Food,5110,FOOD,20/10/2015,409430,97.88,NET,Bidvest Foodservice (3663),55585U
Gloucester City Council,23UE,REDACTED,REDACTED,REDACTED,REDACTED,REDACTED,20/10/2015,REDACTED,140,NET,REDACTED,REDACTED
Gloucester City Council,23UE,Grants To Voluntary Sector,FG100,Abcd Grants,7100A,ROOM HIRE 14/10/15,20/10/2015,409429,119.66,NET,Roots Coffee & Community Cic,13358B
Gloucester City Council,23UE,REDACTED,REDACTED,REDACTED,REDACTED,REDACTED,20/10/2015,REDACTED,323.07,NET,REDACTED,REDACTED
Gloucester City Council,23UE,REDACTED,REDACTED,REDACTED,REDACTED,REDACTED,20/10/2015,REDACTED,272.72,NET,REDACTED,REDACTED
Gloucester City Council,23UE,REDACTED,REDACTED,REDACTED,REDACTED,REDACTED,20/10/2015,REDACTED,350,NET,REDACTED,REDACTED
Gloucester City Council,23UE,REDACTED,REDACTED,REDACTED,REDACTED,REDACTED,20/10/2015,REDACTED,800,NET,REDACTED,REDACTED
Gloucester City Council,23UE,REDACTED,REDACTED,REDACTED,REDACTED,REDACTED,20/10/2015,REDACTED,350,NET,REDACTED,REDACTED
Gloucester City Council,23UE,Investment Property,RB500,General Repair/Maint Buildings,3000,CCTV sysem service contract SEP15-AUG16,20/10/2015,409255,114.73,NET,Allcoopers Ltd,52921E
Gloucester City Council,23UE,REDACTED,REDACTED,REDACTED,REDACTED,REDACTED,20/10/2015,REDACTED,40,NET,REDACTED,REDACTED
Gloucester City Council,23UE,Off Street Car Parks,PP110,General Repair/Maint Buildings,3000,hare lane,20/10/2015,409394,650,NET,Roadmark Ltd,37743T
Gloucester City Council,23UE,Pollution Control,HE300,Fees For Services Received,5350,2 Mopeds,20/10/2015,409099,80,NET,Harry Buckland,16135W
Gloucester City Council,23UE,Pollution Control,HE300,Fees For Services Received,5350,BMW W78 RRW,20/10/2015,409095,120,NET,Harry Buckland,16135W
Gloucester City Council,23UE,Pollution Control,HE300,Fees For Services Received,5350,burnt out vehicle Clock Tower,20/10/2015,409103,200,NET,Harry Buckland,16135W
Gloucester City Council,23UE,Pollution Control,HE300,Fees For Services Received,5350,Fiesta W840 GEJ,20/10/2015,409098,200,NET,Harry Buckland,16135W
Gloucester City Council,23UE,Pollution Control,HE300,Fees For Services Received,5350,Focus T109 PDG,20/10/2015,409102,80,NET,Harry Buckland,16135W
Gloucester City Council,23UE,Pollution Control,HE300,Fees For Services Received,5350,Golf V177 UNH,20/10/2015,409101,80,NET,Harry Buckland,16135W
Gloucester City Council,23UE,Pollution Control,HE300,Fees For Services Received,5350,Passat V642 NOF,20/10/2015,409100,80,NET,Harry Buckland,16135W
Gloucester City Council,23UE,Pollution Control,HE300,Fees For Services Received,5350,Peugeot 307 KN51 NJK,20/10/2015,409097,330,NET,Harry Buckland,16135W
Gloucester City Council,23UE,Pollution Control,HE300,Fees For Services Received,5350,transit Y36 KKU,20/10/2015,409096,210,NET,Harry Buckland,16135W
Gloucester City Council,23UE,Rugby World Cup,LT450,Fees For Services Received,5350,Excavator & plant truck hire,20/10/2015,409171,1135,NET,Ken Pink Plant Hire Ltd,56884V
Gloucester City Council,23UE,Utilities,PT502,Electricity Supply,3110,UTILITIES TO OCT 2015,20/10/2015,409396,14283.23,NET,West Mercia Energy,11669Z
Gloucester City Council,23UE,Vehicles,RS140,Fuel,4012,fuel,20/10/2015,409235,228.23,NET,Allstar Business Solutions Ltd (Arval),06594A
Gloucester City Council,23UE,Allotments,HI104,Fees For Services Received,5350,padlock & keys,21/10/2015,408132,218.54,NET,Gloucester Locksmiths,18160C
Gloucester City Council,23UE,Armscroft Park Flood Mit S106,LY153,Contract Payments,20,Armscroft Park,21/10/2015,408726,110,CAP,Greenfields Garden Services Ltd,48130G
Gloucester City Council,23UE,Asset Management,RS300,General Repair/Maint Buildings,3000,ST OSWALDS,21/10/2015,409437,695,NET,Sally Strachey Historic Conservation Ltd,14202B
Gloucester City Council,23UE,Contact Centre,RB300,Stationery,5302,Stationary,21/10/2015,409294,39.98,NET,Lyreco Uk Ltd,11746G
Gloucester City Council,23UE,Contact Centre,RB300,Stationery,5302,Stationary,21/10/2015,409295,42.67,NET,Lyreco Uk Ltd,11746G
Gloucester City Council,23UE,Contact Centre,RB300,Stationery,5302,Stationary,21/10/2015,409480,19.99,NET,Lyreco Uk Ltd,11746G
Gloucester City Council,23UE,Countryside Unit,LP201,Livestock Foodstuff,5841,BUTTON,21/10/2015,409438,5,NET,Allflex Europe (Uk) Ltd,13351S
Gloucester City Council,23UE,Countryside Unit,LP201,Operational Equipment <5000,5012,Various Items,21/10/2015,409344,59.15,NET,Screwfix Direct,54672H
Gloucester City Council,23UE,Countryside Unit,LP201,Overtime -Building Maint Staff,1303,Oak Seats,21/10/2015,409296,471,NET,Streetmaster Products,00534D
Gloucester City Council,23UE,Crematorium,HC200,Maint Of Grounds - General,3030,PAVING,21/10/2015,409047,782.28,NET,Buildbase Ltd,03692D
Gloucester City Council,23UE,Crematorium,HC200,Maint Of Grounds - General,3030,PAVING,21/10/2015,409048,509.22,NET,Buildbase Ltd,03692D
Gloucester City Council,23UE,Development Management,PT200,Advertising And Publicity,5702,Advertisement 24/09/15,21/10/2015,408553,204.51,NET,Local World Ltd,08556P
Gloucester City Council,23UE,Docks Complex - Catering Servs,RB110,Operational Equipment <5000,5012,Replacement Cartridge,21/10/2015,408988,216,NET,Hoffs (Uk) Ltd,15003A
Gloucester City Council,23UE,REDACTED,REDACTED,REDACTED,REDACTED,REDACTED,21/10/2015,REDACTED,350,NET,REDACTED,REDACTED
Gloucester City Council,23UE,REDACTED,REDACTED,REDACTED,REDACTED,REDACTED,21/10/2015,REDACTED,480,NET,REDACTED,REDACTED
Gloucester City Council,23UE,Flooding And Drainage,HE306,Maint Of Grounds - General,3030,30/09/2015 - Clearance,21/10/2015,409287,450,NET,Rdb Safety Boat Ltd,13507J
Gloucester City Council,23UE,Gloucester Guildhall,LA100,General Repair/Maint Buildings,3000,VAT Only,21/10/2015,409288,0,NET,Office Star Group Ltd,55874H
Gloucester City Council,23UE,Grants To Voluntary Sector,FG100,Members Allocation Fund,7100F,GRANT,21/10/2015,409443,160.64,NET,Westgate Tcc C/O Maggie Day,16144V
Gloucester City Council,23UE,Grants To Voluntary Sector,FG100,Members Allocation Fund,7100F,GRANT,21/10/2015,409444,250,NET,St.Stephens 55 Plus,16146R
Gloucester City Council,23UE,Grants To Voluntary Sector,FG100,Members Allocation Fund,7100F,GRANT,21/10/2015,409445,1000,NET,Gloucester Primary Schools Football Ass.,16145T
Gloucester City Council,23UE,Grants To Voluntary Sector,FG100,Members Allocation Fund,7100F,GRANT,21/10/2015,409447,1500,NET,Longlevens Infant School,05789S
Gloucester City Council,23UE,Hempsted Market/Car Boot,HM234,Hire Of Equipment,5020,Hempsted meadows hire 1/7/15,21/10/2015,404887,360,NET,Portable Offices (Hire ) Ltd,06286R
Gloucester City Council,23UE,Homelessness,CH120,Basic Pay - Holding Account,1551,Storage Sept 2015,21/10/2015,409318,117.32,NET,Advanced Removals & Storage Ltd,57142R
Gloucester City Council,23UE,Homelessness,CH120,Fees For Services Received,5350,Medical Reports,21/10/2015,409341,130,NET,Now Medical,03468L
Gloucester City Council,23UE,Homelessness,CH120,Removal And Storage Fees,5513,Storage Charges September 2015,21/10/2015,409298,39.11,NET,Advanced Removals & Storage Ltd,57142R
Gloucester City Council,23UE,Homelessness,CH120,Removal And Storage Fees,5513,Storage Sept 2015,21/10/2015,409338,38.57,NET,Advanced Removals & Storage Ltd,57142R
Gloucester City Council,23UE,Homelessness,CH120,Removal And Storage Fees,5513,Storage Sept 2015,21/10/2015,409337,39.11,NET,Advanced Removals & Storage Ltd,57142R
Gloucester City Council,23UE,Homelessness,CH120,Removal And Storage Fees,5513,Storage Sept 2015,21/10/2015,409340,42.43,NET,Advanced Removals & Storage Ltd,57142R
Gloucester City Council,23UE,Homelessness,CH120,Removal And Storage Fees,5513,Storage Sept 2015,21/10/2015,409336,20.57,NET,Advanced Removals & Storage Ltd,57142R
Gloucester City Council,23UE,Homelessness,CH120,Removal And Storage Fees,5513,Storage Sept 2015,21/10/2015,409339,78.21,NET,Advanced Removals & Storage Ltd,57142R
Gloucester City Council,23UE,Homelessness,CH120,Removal And Storage Fees,5513,Storage September 2015,21/10/2015,409301,234.64,NET,Advanced Removals & Storage Ltd,57142R
Gloucester City Council,23UE,Homelessness Prevention,CH122,Basic Pay - Temporary Staff,2751,Temporary staff W/E 09/10/15,21/10/2015,409439,645,NET,Greenacre Recruitment Ltd,15817V
Gloucester City Council,23UE,Homelessness Prevention,CH122,Fees For Services Received,5350,Remove Rubbish,21/10/2015,409342,1500,NET,Gloucester City Homes,05244T
Gloucester City Council,23UE,Homelessness Prevention,CH122,Fees For Services Received,5350,SUB SEPT 2015,21/10/2015,409448,2620,NET,Thomson Reuters,43110M
Gloucester City Council,23UE,Investment Property,RB500,General Repair/Maint Buildings,3000,GUILDHALL,21/10/2015,408419,350,NET,Airvent Systems Limited,51073T
Gloucester City Council,23UE,Investment Property,RB500,Lift Maintenance,3051,Eastgate mkt lift no 4 works,21/10/2015,409161,12530.56,NET,Pickerings Europe Ltd,58816U
Gloucester City Council,23UE,Investment Property,RB500,Repair/Maint Of Fixed Plant,3006,14/9/15 planned maintenance,21/10/2015,408039,30.72,NET,Mitchells (Gloucester) Ltd,30160U
Gloucester City Council,23UE,Investment Property,RB500,Repair/Maint Of Fixed Plant,3006,BLACKFRIARS,21/10/2015,409434,845,NET,Axiom Building Services,14908A
Gloucester City Council,23UE,Investment Property,RB500,Repair/Maint Of Fixed Plant,3006,HKP,21/10/2015,409440,2560.03,NET,Axiom Building Services,14908A
Gloucester City Council,23UE,Legal Services,RS200,Publications,5060,Planning Cont & Their Enforce LL R15,21/10/2015,407261,53,NET,Thomson Reuters,43110M
Gloucester City Council,23UE,Legal Services,RS200,Publications,5060,SUBSCRIPTION,21/10/2015,405055,53,NET,Thomson Reuters,43110M
Gloucester City Council,23UE,Licences,HE510,Vocational Training,2970,training course MAY16,21/10/2015,409247,150,NET,The Institute Of Licensing (Events) Ltd,10855K
Gloucester City Council,23UE,Marchants,LT108,Equipment For Sale,5050,Tickets August 2015,21/10/2015,409281,4399,NET,Marchants Coaches Ltd,48151Y
Gloucester City Council,23UE,Play Area Refurbishment,LY071,Contract Payments,20,DEANS WAY,21/10/2015,409449,120,CAP,Greenfields Garden Services Ltd,48130G
Gloucester City Council,23UE,Rehousing,CH111,Fees For Services Received,5350,Medical Report,21/10/2015,409299,20.5,NET,Gloucester Health Access Centre,11611H
Gloucester City Council,23UE,Rehousing,CH111,Fees For Services Received,5350,Medical Report,21/10/2015,409300,20.5,NET,Hadwen Medical Practice,59727U
Gloucester City Council,23UE,Rehousing,CH111,Fees For Services Received,5350,Medical Reports,21/10/2015,409341,325,NET,Now Medical,03468L
Gloucester City Council,23UE,Rugby World Cup,LT450,Hire Of Equipment,5020,balance for RWC Fanzone,21/10/2015,409479,23092.5,NET,Production Av Ltd,15827S
Gloucester City Council,23UE,Safer Stronger Communities,FP841,Other Minor Supplies Services,5590,Contribution Op Switch Campaign,21/10/2015,409279,500,NET,"Police & Crime Commissioner, Gloucestershire",49521B
Gloucester City Council,23UE,The Arbor,HC501,Catering Provisions -Food,5110,Food,21/10/2015,409352,36.54,NET,Total Produce Gloucester,12645E
Gloucester City Council,23UE,The Arbor,HC501,Catering Provisions -Food,5110,Food,21/10/2015,409353,26.39,NET,Total Produce Gloucester,12645E
Gloucester City Council,23UE,The Arbor,HC501,Catering Provisions -Food,5110,Food,21/10/2015,409354,8.48,NET,Total Produce Gloucester,12645E
Gloucester City Council,23UE,The Arbor,HC501,Catering Provisions -Food,5110,Food,21/10/2015,409355,57.81,NET,Total Produce Gloucester,12645E
Gloucester City Council,23UE,The Arbor,HC501,Catering Provisions -Food,5110,Food,21/10/2015,409356,52.88,NET,Total Produce Gloucester,12645E
Gloucester City Council,23UE,The Arbor,HC501,Catering Provisions -Food,5110,Food,21/10/2015,409358,35,NET,Total Produce Gloucester,12645E
Gloucester City Council,23UE,The Arbor,HC501,Catering Provisions -Food,5110,Food,21/10/2015,409359,13.03,NET,Total Produce Gloucester,12645E
Gloucester City Council,23UE,The Arbor,HC501,Catering Provisions -Food,5110,Food,21/10/2015,409360,26.54,NET,Total Produce Gloucester,12645E
Gloucester City Council,23UE,The Arbor,HC501,Catering Provisions -Food,5110,Food,21/10/2015,409361,9.68,NET,Total Produce Gloucester,12645E
Gloucester City Council,23UE,The Arbor,HC501,Catering Provisions -Food,5110,Food,21/10/2015,409362,56.74,NET,Total Produce Gloucester,12645E
Gloucester City Council,23UE,The Arbor,HC501,Catering Provisions -Food,5110,Food,21/10/2015,409363,126.85,NET,Total Produce Gloucester,12645E
Gloucester City Council,23UE,The Arbor,HC501,Catering Provisions -Food,5110,Food,21/10/2015,409364,26.45,NET,Total Produce Gloucester,12645E
Gloucester City Council,23UE,The Arbor,HC501,Catering Provisions -Food,5110,Food,21/10/2015,409365,44.82,NET,Total Produce Gloucester,12645E
Gloucester City Council,23UE,The Arbor,HC501,Catering Provisions -Food,5110,Food,21/10/2015,409366,376.05,NET,Bidvest Foodservice (3663),55585U
Gloucester City Council,23UE,The Arbor,HC501,Catering Provisions -Food,5110,Food,21/10/2015,409367,358.92,NET,Bidvest Foodservice (3663),55585U
Gloucester City Council,23UE,The Arbor,HC501,Catering Provisions -Food,5110,Food,21/10/2015,409368,120.67,NET,Bidvest Foodservice (3663),55585U
Gloucester City Council,23UE,The Arbor,HC501,Catering Provisions -Food,5110,Food,21/10/2015,409369,158.67,NET,Bidvest Foodservice (3663),55585U
Gloucester City Council,23UE,The Arbor,HC501,Catering Provisions -Food,5110,Food,21/10/2015,409377,159.83,NET,Bidvest Foodservice (3663),55585U
Gloucester City Council,23UE,The Arbor,HC501,Catering Provisions -Food,5110,Food,21/10/2015,409378,354.36,NET,Bidvest Foodservice (3663),55585U
Gloucester City Council,23UE,The Arbor,HC501,Catering Provisions -Food,5110,Food,21/10/2015,409379,130,NET,Bidvest Foodservice (3663),55585U
Gloucester City Council,23UE,The Arbor,HC501,Catering Provisions -Food,5110,Food,21/10/2015,409380,33.85,NET,Bidvest Foodservice (3663),55585U
Gloucester City Council,23UE,The Arbor,HC501,Catering Provisions -Food,5110,Food,21/10/2015,409381,277.58,NET,Bidvest Foodservice (3663),55585U
Gloucester City Council,23UE,The Arbor,HC501,Catering Provisions -Liquor,5111,Drinks,21/10/2015,409289,159.41,NET,Cellar Supplies Cheltenham Ltd,01563L
Gloucester City Council,23UE,The Arbor,HC501,Catering Provisions -Liquor,5111,Drinks,21/10/2015,409290,107.13,NET,Cellar Supplies Cheltenham Ltd,01563L
Gloucester City Council,23UE,The Arbor,HC501,Cleaning Materials,3600,Cleaning Materials,21/10/2015,409291,29.78,NET,Core Hygiene Ltd,03885P
Gloucester City Council,23UE,The Arbor,HC501,Cleaning Materials,3600,Cleaning Materials,21/10/2015,409292,2.25,NET,Core Hygiene Ltd,03885P
Gloucester City Council,23UE,The Arbor,HC501,Cleaning Materials,3600,Cleaning Materials,21/10/2015,409293,32.78,NET,Core Hygiene Ltd,03885P
Gloucester City Council,23UE,The Arbor,HC501,Other Minor Supplies Services,5590,Flowers,21/10/2015,409350,19.8,NET,Carols Florist,01274X
Gloucester City Council,23UE,The Arbor,HC501,Other Minor Supplies Services,5590,Flowers,21/10/2015,409351,19.8,NET,Carols Florist,01274X
Gloucester City Council,23UE,Theatre Tokens,LT106,Materials For Sale,5080,Tickets August 2015,21/10/2015,409348,50,NET,Society Of London Theatre,05656Z
Gloucester City Council,23UE,Theatre Tokens,LT106,Sale Of Goods And Services,9230,Tickets August 2015,21/10/2015,409348,-2.5,NET,Society Of London Theatre,05656Z
Gloucester City Council,23UE,Tic Trading,LT110,Materials For Sale,5080,Cards,21/10/2015,409284,20.75,NET,Philip Mansergh Fine Art Publisher,00134A
Gloucester City Council,23UE,Tic Trading,LT110,Materials For Sale,5080,DVD's,21/10/2015,409370,111.88,NET,1st Take Ltd,05598B
Gloucester City Council,23UE,Tic Trading,LT110,Materials For Sale,5080,Tea Bags,21/10/2015,409280,226.4,NET,New English Teas Ltd,00118Y
Gloucester City Council,23UE,REDACTED,REDACTED,REDACTED,REDACTED,REDACTED,21/10/2015,REDACTED,111.5,NET,REDACTED,REDACTED
Gloucester City Council,23UE,Tourism Marketing,LT100,Window Cleaning,3610,Windw Cleaning 31/08/2015,21/10/2015,409282,6,NET,Interserve Fs (Uk) Limited,07778C
Gloucester City Council,23UE,Utilities,PT502,Electricity Supply,3110,UTILITIES TO OCT 2015,21/10/2015,409451,10375.56,NET,West Mercia Energy,11669Z
Gloucester City Council,23UE,Blackfriars,LA609,Hire Of Equipment,5020,History festival equipment,22/10/2015,409547,648.5,NET,Unique Sound Systems,59571S
Gloucester City Council,23UE,Blackfriars Catering,LA220,Catering Provisions -Liquor,5111,drinks,22/10/2015,409577,121.23,NET,Cellar Supplies Cheltenham Ltd,01563L
Gloucester City Council,23UE,Blackfriars Catering,LA220,Catering Provisions -Liquor,5111,drinks,22/10/2015,409578,53.97,NET,Cellar Supplies Cheltenham Ltd,01563L
Gloucester City Council,23UE,Blackfriars Catering,LA220,Catering Provisions -Liquor,5111,drinks,22/10/2015,409579,149.06,NET,Cellar Supplies Cheltenham Ltd,01563L
Gloucester City Council,23UE,Cemeteries,HC300,Basic Pay - Temporary Staff,2751,temporary staff w/e 27/9/15,22/10/2015,408867,445.75,NET,Premiere Employment Group Ltd,55468Z
Gloucester City Council,23UE,Cemeteries,HC300,Basic Pay - Temporary Staff,2751,temporary staff w/e 4/10/15,22/10/2015,409159,445.74,NET,Premiere Employment Group Ltd,55468Z
Gloucester City Council,23UE,Cemeteries,HC300,Basic Pay - Temporary Staff,2751,temporary staff w/e 27/9/15,22/10/2015,408868,439.88,NET,Premiere Employment Group Ltd,55468Z
Gloucester City Council,23UE,Cemeteries,HC300,Basic Pay - Temporary Staff,2751,temporary staff w/e 4/10/15,22/10/2015,409158,451.61,NET,Premiere Employment Group Ltd,55468Z
Gloucester City Council,23UE,Contact Centre,RB300,Publications,5060,NEWSPAPERS,22/10/2015,409481,164,NET,Ymk Supermarket,55281U
Gloucester City Council,23UE,Council Streetcare Team,HI101,Window Cleaning,3610,SEP15 Eastgate Viewing Chamber,22/10/2015,409090,130,NET,Poles Apart Window Cleaning,11636R
Gloucester City Council,23UE,Crematorium,HC200,Equipment For Sale,5050,memorial bench,22/10/2015,409550,429.16,NET,Codec Facilities Ltd,14338Y
Gloucester City Council,23UE,Crematorium,HC200,Equipment For Sale,5050,memorial bench,22/10/2015,409551,429.16,NET,Codec Facilities Ltd,14338Y
Gloucester City Council,23UE,REDACTED,REDACTED,REDACTED,REDACTED,REDACTED,22/10/2015,REDACTED,86,NET,REDACTED,REDACTED
Gloucester City Council,23UE,Equalities,EH102,Other Minor Supplies Services,5590,BINS,22/10/2015,409487,150,NET,Abc Hire & Sales Ltd,16139M
Gloucester City Council,23UE,Gloucester Guildhall,LA100,Maintenance Of Equipment,5030,used stage lighting cabling,22/10/2015,409552,257,NET,Ru Electrical Services,10389U
Gloucester City Council,23UE,Guildhall Bar And Caf�,LA210,Catering Provisions -Food,5110,food,22/10/2015,409548,4.6,NET,Total Produce Gloucester,12645E
Gloucester City Council,23UE,Guildhall Bar And Caf�,LA210,Catering Provisions -Food,5110,food,22/10/2015,409561,33.75,NET,Janes Pantry,24500W
Gloucester City Council,23UE,Guildhall Bar And Caf�,LA210,Catering Provisions -Food,5110,food,22/10/2015,409573,131.14,NET,Woodward Foodservice,10714F
Gloucester City Council,23UE,Guildhall Bar And Caf�,LA210,Catering Provisions -Food,5110,food,22/10/2015,409574,172.01,NET,Woodward Foodservice,10714F
Gloucester City Council,23UE,Guildhall Bar And Caf�,LA210,Catering Provisions -Food,5110,food,22/10/2015,409580,4.6,NET,Total Produce Gloucester,12645E
Gloucester City Council,23UE,Guildhall Bar And Caf�,LA210,Catering Provisions -Food,5110,food,22/10/2015,409581,4.6,NET,Total Produce Gloucester,12645E
Gloucester City Council,23UE,Guildhall Bar And Caf�,LA210,Catering Provisions -Food,5110,food,22/10/2015,409582,4.6,NET,Total Produce Gloucester,12645E
Gloucester City Council,23UE,Guildhall Bar And Caf�,LA210,Catering Provisions -Food,5110,food,22/10/2015,409583,4.6,NET,Total Produce Gloucester,12645E
Gloucester City Council,23UE,Guildhall Bar And Caf�,LA210,Catering Provisions -Food,5110,food,22/10/2015,409584,4.6,NET,Total Produce Gloucester,12645E
Gloucester City Council,23UE,Guildhall Bar And Caf�,LA210,Catering Provisions -Food,5110,food,22/10/2015,409585,4.6,NET,Total Produce Gloucester,12645E
Gloucester City Council,23UE,Guildhall Bar And Caf�,LA210,Catering Provisions -Food,5110,food,22/10/2015,409586,4.6,NET,Total Produce Gloucester,12645E
Gloucester City Council,23UE,Guildhall Bar And Caf�,LA210,Catering Provisions -Liquor,5111,drinks,22/10/2015,409575,343.94,NET,Cellar Supplies Cheltenham Ltd,01563L
Gloucester City Council,23UE,Guildhall Bar And Caf�,LA210,Catering Provisions -Liquor,5111,drinks,22/10/2015,409576,255.98,NET,Cellar Supplies Cheltenham Ltd,01563L
Gloucester City Council,23UE,Guildhall Bar And Caf�,LA210,Catering Provisions -Liquor,5111,DRINKS,22/10/2015,409559,102,NET,Gloucester Brewery,13373F
Gloucester City Council,23UE,Guildhall Cinema,LA202,Fees For Services Received,5350,Monthly Film Charge,22/10/2015,408977,219.59,NET,Nft Logistics Ltd,13505N
Gloucester City Council,23UE,REDACTED,REDACTED,REDACTED,REDACTED,REDACTED,22/10/2015,REDACTED,50,NET,REDACTED,REDACTED
Gloucester City Council,23UE,REDACTED,REDACTED,REDACTED,REDACTED,REDACTED,22/10/2015,REDACTED,150,NET,REDACTED,REDACTED
Gloucester City Council,23UE,REDACTED,REDACTED,REDACTED,REDACTED,REDACTED,22/10/2015,REDACTED,100,NET,REDACTED,REDACTED
Gloucester City Council,23UE,REDACTED,REDACTED,REDACTED,REDACTED,REDACTED,22/10/2015,REDACTED,100,NET,REDACTED,REDACTED
Gloucester City Council,23UE,REDACTED,REDACTED,REDACTED,REDACTED,REDACTED,22/10/2015,REDACTED,100,NET,REDACTED,REDACTED
Gloucester City Council,23UE,Homelessness,CH120,Basic Pay - Temporary Staff,2751,Temporary staff w/e 4/10/15,22/10/2015,409572,335.11,NET,James Andrews Recruitment Solutions,13636W
Gloucester City Council,23UE,Homelessness,CH120,Rents,3200,JUL-SEP15 mgmt fee Caridas & Priory,22/10/2015,409083,46250,NET,Gloucester City Homes,05244T
Gloucester City Council,23UE,Inhouse Training,EH200,Vocational Training,2970,Membership fees S Price,22/10/2015,409554,166.5,NET,Chartered Institute Ofprocurement & Supply,10121S
Gloucester City Council,23UE,Investment Property,RB500,General Repair/Maint Buildings,3000,HKP,22/10/2015,409483,3168.1,NET,Adt Fire & Security Plc,54086D
Gloucester City Council,23UE,Investment Property,RB500,Repair/Maint Of Fixed Plant,3006,THE ARBOR,22/10/2015,409455,49.95,NET,Axiom Building Services,14908A
Gloucester City Council,23UE,Kings Quarter,RY146,Contract Payments,20,BUS STATION,22/10/2015,408651,750,CAP,Sweett (Uk) Ltd,14770R
Gloucester City Council,23UE,Parks Contract Management,LP100,Maint Of Grounds - General,3030,ROPE,22/10/2015,409482,257.25,NET,Certex Uk Ltd,52192Y
Gloucester City Council,23UE,Pollution Control,HE300,Fees For Services Received,5350,Storage & Diposal Fee,22/10/2015,409297,120,NET,Harry Buckland,16135W
Gloucester City Council,23UE,Printing,RP103,Printing,5300,printing,22/10/2015,409570,2640,NET,Alpha Colour Printers Ltd,00945B
Gloucester City Council,23UE,Printing,RP103,Printing,5300,printing,22/10/2015,409571,764,NET,Alpha Colour Printers Ltd,00945B
Gloucester City Council,23UE,Registration Of Electors,RS400,Fees For Services Received,5350,Individual Electoral registration 2015,22/10/2015,409560,2917.88,NET,Electoral Reform Services,02206F
Gloucester City Council,23UE,REDACTED,REDACTED,REDACTED,REDACTED,REDACTED,22/10/2015,REDACTED,120,NET,REDACTED,REDACTED
Gloucester City Council,23UE,Registration Of Electors,RS400,Postages,5400,post acct 0870585031,22/10/2015,409555,1378.21,NET,Royal Mail S.Wales & South West,35830S
Gloucester City Council,23UE,Retail Market - Landlord,HM300,Operational Equipment <5000,5012,compactor rental,22/10/2015,409558,280.56,NET,System Rental Uk Ltd,03239E
Gloucester City Council,23UE,Rugby World Cup,LT450,Fees For Services Received,5350,HIRE 23/09/15,22/10/2015,408657,370,NET,B & W Hire Ltd,55477Y
Gloucester City Council,23UE,Rugby World Cup,LT450,Fees For Services Received,5350,RWC stiltwalker,22/10/2015,409565,1750,NET,J T Maynard Watts T/A Thomas Trilby,00791P
Gloucester City Council,23UE,Rugby World Cup,LT450,Fees For Services Received,5350,rwc fanzone stewards,22/10/2015,409553,1952.25,NET,Nsgl Ltd,15246Y
Gloucester City Council,23UE,The Arbor,HC501,Catering Provisions -Food,5110,food,22/10/2015,408819,218.29,NET,Janes Pantry,24500W
Gloucester City Council,23UE,Training Schemes,ET100,Vocational Training,2970,trainees,22/10/2015,409488,1200,NET,The Gold Standard,56141C
Gloucester City Council,23UE,Asset Management,RS300,General Repair/Maint Buildings,3000,Supply 10 Master Keys,23/10/2015,408752,250,NET,J M Grail (General Engineering) Ltd,03204A
Gloucester City Council,23UE,Cemeteries,HC300,Basic Pay - Temporary Staff,2751,temporary staff w/e 11/10/15,23/10/2015,409646,451.61,NET,Premiere Employment Group Ltd,55468Z
Gloucester City Council,23UE,Cemeteries,HC300,Basic Pay - Temporary Staff,2751,Temporary staff w/e 11/10/15,23/10/2015,409645,451.61,NET,Premiere Employment Group Ltd,55468Z
Gloucester City Council,23UE,City Museum And Art Gallery,LM200,Other Minor Supplies Services,5590,retail training course,23/10/2015,409644,2310,NET,Retail Matters,13832J
Gloucester City Council,23UE,REDACTED,REDACTED,REDACTED,REDACTED,REDACTED,23/10/2015,REDACTED,1330,NET,REDACTED,REDACTED
Gloucester City Council,23UE,Client Revs & Bens Contract,RT240,Bailiffs Fees,5368,vat due on fees,23/10/2015,409236,0,NET,Bristow & Sutor,05450M
Gloucester City Council,23UE,Client Revs & Bens Contract,RT240,Bailiffs Fees,5368,vat due on fees,23/10/2015,409237,0,NET,Bristow & Sutor,05450M
Gloucester City Council,23UE,Council Streetcare Team,HI101,Maint Of Grounds - General,3030,tonic for aviary birds,23/10/2015,409633,4.42,NET,Angell Pets Ltd,15773P
Gloucester City Council,23UE,Crematorium,HC200,Maint Of Grounds - General,3030,Pergolas,23/10/2015,409345,3197,NET,Gloucester Street Forge,11069C
Gloucester City Council,23UE,Crematorium,HC200,Repair/Maint Of Monuments,3004,SANCTUM TABLET,23/10/2015,409563,100.5,NET,The Columbaria Company,55078T
Gloucester City Council,23UE,REDACTED,REDACTED,REDACTED,REDACTED,REDACTED,23/10/2015,REDACTED,2142,CAP,REDACTED,REDACTED
Gloucester City Council,23UE,Docks Complex - Services,RB100,Service Charges,3020,trade waste,23/10/2015,407789,11272.41,NET,Enterprise (Aol) Ltd,06695G
Gloucester City Council,23UE,Environmental Planning,LM340,Operational Materials,5070,recycled plastic combi unit,23/10/2015,409630,591.86,NET,Fitzpatrick Woolmer Design & Publishing Ltd,04091D
Gloucester City Council,23UE,General Works Fund,RY203,Cap Repair/Maint Fixed Plant,14,HKP Boilers,23/10/2015,409635,25552,CAP,Mechanical Installation Heatingservices(Glos),16130G
Gloucester City Council,23UE,Gloucester Guildhall,LA100,Fees For Services Received,5350,Gloucester Day PA,23/10/2015,409627,200,NET,Leap Audio,15059W
Gloucester City Council,23UE,REDACTED,REDACTED,REDACTED,REDACTED,REDACTED,23/10/2015,REDACTED,31.72,NET,REDACTED,REDACTED
Gloucester City Council,23UE,REDACTED,REDACTED,REDACTED,REDACTED,REDACTED,23/10/2015,REDACTED,100,NET,REDACTED,REDACTED
Gloucester City Council,23UE,REDACTED,REDACTED,REDACTED,REDACTED,REDACTED,23/10/2015,REDACTED,90,NET,REDACTED,REDACTED
Gloucester City Council,23UE,REDACTED,REDACTED,REDACTED,REDACTED,REDACTED,23/10/2015,REDACTED,90,NET,REDACTED,REDACTED
Gloucester City Council,23UE,REDACTED,REDACTED,REDACTED,REDACTED,REDACTED,23/10/2015,REDACTED,446.67,NET,REDACTED,REDACTED
Gloucester City Council,23UE,REDACTED,REDACTED,REDACTED,REDACTED,REDACTED,23/10/2015,REDACTED,106.25,NET,REDACTED,REDACTED
Gloucester City Council,23UE,REDACTED,REDACTED,REDACTED,REDACTED,REDACTED,23/10/2015,REDACTED,166.66,NET,REDACTED,REDACTED
Gloucester City Council,23UE,REDACTED,REDACTED,REDACTED,REDACTED,REDACTED,23/10/2015,REDACTED,295.84,NET,REDACTED,REDACTED
Gloucester City Council,23UE,REDACTED,REDACTED,REDACTED,REDACTED,REDACTED,23/10/2015,REDACTED,2814.27,NET,REDACTED,REDACTED
Gloucester City Council,23UE,REDACTED,REDACTED,REDACTED,REDACTED,REDACTED,23/10/2015,REDACTED,368.2,NET,REDACTED,REDACTED
Gloucester City Council,23UE,REDACTED,REDACTED,REDACTED,REDACTED,REDACTED,23/10/2015,REDACTED,489.44,NET,REDACTED,REDACTED
Gloucester City Council,23UE,REDACTED,REDACTED,REDACTED,REDACTED,REDACTED,23/10/2015,REDACTED,400,NET,REDACTED,REDACTED
Gloucester City Council,23UE,REDACTED,REDACTED,REDACTED,REDACTED,REDACTED,23/10/2015,REDACTED,1000,NET,REDACTED,REDACTED
Gloucester City Council,23UE,Homelessness Prevention,CH122,Grants To Advice Centres,7100,Homeless emergency beds Q2 OCT-DEC15,23/10/2015,409631,2546.5,NET,P3 (People Potential Possibilities),13809N
Gloucester City Council,23UE,Investment Property,RB500,General Repair/Maint Buildings,3000,Call Out 07/10/2015,23/10/2015,409375,203.42,NET,Cooltherm,06087Z
Gloucester City Council,23UE,Publications,RC450,Fees For Services Received,5350,JUL-SEP15 communications support,23/10/2015,409239,20000,NET,Gloucestershire County Council,18650D
Gloucester City Council,23UE,Retail Market - Landlord,HM300,Window Cleaning,3610,OCT15 window cleaning,23/10/2015,409634,140,NET,Cornwall Cleaning Services,14050A
Gloucester City Council,23UE,Rugby World Cup,LT450,Fees For Services Received,5350,Toilet Hire,23/10/2015,408719,395,NET,B & W Hire Ltd,55477Y
Gloucester City Council,23UE,REDACTED,REDACTED,REDACTED,REDACTED,REDACTED,23/10/2015,REDACTED,380,NET,REDACTED,REDACTED
Gloucester City Council,23UE,Tic Trading,LT110,Trade Refuse Sacks,5040,"Trade Sacks, Labels",23/10/2015,409376,1974.9,NET,Enterprise (Aol) Ltd,06695G
Gloucester City Council,23UE,Utilities,PT502,Electricity Supply,3110,UTILITIES TO OCT 2015,23/10/2015,409489,44126.37,NET,West Mercia Energy,11669Z
Gloucester City Council,23UE,Vehicles,RS140,Fuel,4012,fuel,23/10/2015,409625,242.95,NET,Allstar Business Solutions Ltd (Arval),06594A
Gloucester City Council,23UE,Business Grants,GY007,Contract Payments,20,grant,26/10/2015,409714,9226,CAP,African Experience Restaurant,16138P
Gloucester City Council,23UE,Business Transformation & Tech,RT700,Fees For Services Received,5350,NETconsent prof services,26/10/2015,409687,2200,NET,Cogo Agency Ltd,13408M
Gloucester City Council,23UE,Civica Admin Charges,RT105,Postages,5400,acct 0870585007,26/10/2015,409709,1238.8,NET,Royal Mail S.Wales & South West,35830S
Gloucester City Council,23UE,Civica Contract Revs & Bens,RT250,Contracted Services,6970,Pensions AUG15,26/10/2015,408892,10827.54,NET,Civica Uk Ltd,10841X
Gloucester City Council,23UE,Civica Contract Revs & Bens,RT250,Contracted Services,6970,Pensions SEP15,26/10/2015,408896,11088.92,NET,Civica Uk Ltd,10841X
Gloucester City Council,23UE,Civic Admin And Hospitality,RC210,Other Minor Supplies Services,5590,re mount photo,26/10/2015,409715,20,NET,Geoff C Cook Picture Framing,58727U
Gloucester City Council,23UE,Civica It Contract,RT270,Contracted Services,6970,Pensions SEP15,26/10/2015,408891,414.53,NET,Civica Uk Ltd,10841X
Gloucester City Council,23UE,Client Revs & Bens Contract,RT240,Bailiffs Fees,5368,fees paid direct & VAT due on fees,26/10/2015,409701,52.43,NET,Bristow & Sutor,05450M
Gloucester City Council,23UE,Client Revs & Bens Contract,RT240,Bailiffs Fees,5368,VAT due on fees,26/10/2015,409699,0,NET,Bristow & Sutor,05450M
Gloucester City Council,23UE,Client Revs & Bens Contract,RT240,Bailiffs Fees,5368,VAT due on fees,26/10/2015,409700,0,NET,Bristow & Sutor,05450M
Gloucester City Council,23UE,Council Streetcare Team,HI101,General Repair/Maint Buildings,3000,Playground Repairs,26/10/2015,408561,179.51,NET,Enterprise (Aol) Ltd,06695G
Gloucester City Council,23UE,Council Streetcare Team,HI101,Vocational Training,2970,LARAC conference 15/10/15,26/10/2015,409696,320,NET,Environment Media Group,14994E
Gloucester City Council,23UE,Countryside Unit,LP201,Contract Cleaning,3620,ranger centre cleaning,26/10/2015,409686,130,NET,Cv Fisher Cleaning Services,14907C
Gloucester City Council,23UE,Crematorium,HC200,Cleaning Materials,3600,Crem sanitary disposal unit,26/10/2015,408945,17.28,NET,Minster Cleaning Services,02158R
Gloucester City Council,23UE,Docks Complex - Catering Servs,RB110,Catering Provisions -Food,5110,buffet,26/10/2015,409688,158.2,NET,Janes Pantry,24500W
Gloucester City Council,23UE,Docks Complex - Catering Servs,RB110,Catering Provisions -Food,5110,buffet,26/10/2015,409689,39.6,NET,Janes Pantry,24500W
Gloucester City Council,23UE,Docks Complex - Catering Servs,RB110,Catering Provisions -Food,5110,buffet,26/10/2015,409690,130.98,NET,Janes Pantry,24500W
Gloucester City Council,23UE,Docks Complex - Catering Servs,RB110,Catering Provisions -Food,5110,buffet,26/10/2015,409691,31.68,NET,Janes Pantry,24500W
Gloucester City Council,23UE,Docks Complex - Catering Servs,RB110,Catering Provisions -Food,5110,buffet,26/10/2015,409693,61.88,NET,Janes Pantry,24500W
Gloucester City Council,23UE,Economic Development,FP300,Business Grant,7116,grant,26/10/2015,409712,1500,NET,The Mylk Bottle Ltd,16143X
Gloucester City Council,23UE,Electrical Investigatory Works,RY142,Cap Repair/Maint Fixed Plant,14,TM44 Air Conditioning Inspecton Survey,26/10/2015,403392,2500,CAP,Briar Associates,15032T
Gloucester City Council,23UE,Green Garden Waste,HI105,Fees For Services Received,5350,GARDEN WASTE SYSTEM,26/10/2015,407818,10250,NET,Ash Information Systems Ltd,54890V
Gloucester City Council,23UE,Homelessness,CH120,Fees For Services Received,5350,homeless accomm,26/10/2015,407019,800,NET,Gloucestershire County Council,18650D
Gloucester City Council,23UE,Homelessness,CH120,Fees For Services Received,5350,medical report,26/10/2015,409704,20.5,NET,Hadwen Medical Practice,59727U
Gloucester City Council,23UE,Homelessness,CH120,Fees For Services Received,5350,medical report,26/10/2015,409706,20.5,NET,Kingsholm Surgery,11948S
Gloucester City Council,23UE,REDACTED,REDACTED,REDACTED,REDACTED,REDACTED,26/10/2015,REDACTED,20.5,NET,REDACTED,REDACTED
Gloucester City Council,23UE,REDACTED,REDACTED,REDACTED,REDACTED,REDACTED,26/10/2015,REDACTED,368.2,NET,REDACTED,REDACTED
Gloucester City Council,23UE,REDACTED,REDACTED,REDACTED,REDACTED,REDACTED,26/10/2015,REDACTED,489.44,NET,REDACTED,REDACTED
Gloucester City Council,23UE,Homelessness Prevention,CH122,Basic Pay - Temporary Staff,2751,temporary staff w/e 18/10/15,26/10/2015,409727,795.5,NET,Greenacre Recruitment Ltd,15817V
Gloucester City Council,23UE,REDACTED,REDACTED,REDACTED,REDACTED,REDACTED,26/10/2015,REDACTED,400,NET,REDACTED,REDACTED
Gloucester City Council,23UE,REDACTED,REDACTED,REDACTED,REDACTED,REDACTED,26/10/2015,REDACTED,530,NET,REDACTED,REDACTED
Gloucester City Council,23UE,Investment Property,RB500,General Repair/Maint Buildings,3000,Minor works contract,26/10/2015,409717,243.2,NET,Riba Enterprises,09988U
Gloucester City Council,23UE,Land Searches,RO300,Charges For Services,9300,Land Charges Apr-Jun15,26/10/2015,409721,6999.18,NET,Gloucestershire County Council,18650D
Gloucester City Council,23UE,Organisational Health,RC160,Fees For Services Received,5350,JobScreen services,26/10/2015,409692,40,NET,Industrial Medical & Safety Services Ltd,10668L
Gloucester City Council,23UE,Parks Contract Management,LP100,Maint Of Grounds - General,3030,Playground Repairs,26/10/2015,408561,288.88,NET,Enterprise (Aol) Ltd,06695G
Gloucester City Council,23UE,Rehousing,CH111,Fees For Services Received,5350,medical report,26/10/2015,409705,20.5,NET,Hadwen Medical Practice,59727U
Gloucester City Council,23UE,Rehousing,CH111,Fees For Services Received,5350,medical report,26/10/2015,407689,20.5,NET,Rosebank Health,03041E
Gloucester City Council,23UE,Retail Market - Landlord,HM300,Hire Of Equipment,5020,skip hire,26/10/2015,409708,220,NET,D R Skip Hire,04822D
Gloucester City Council,23UE,Retail Market - Landlord,HM300,Sewerage And Environ Charges,3402,markets drain service,26/10/2015,409726,180,NET,Eezeeflow Drain Services,11587C
Gloucester City Council,23UE,Retail Market - Landlord,HM300,Sewerage And Environ Charges,3402,SERVICE TO 10/2016,26/10/2015,408316,1998,NET,Phs Group Ltd,55193S
Gloucester City Council,23UE,Retail Market - Landlord,HM300,Sewerage And Environ Charges,3402,WASTE OCT 2015,26/10/2015,407816,77.36,NET,Phs Group Ltd,55193S
Gloucester City Council,23UE,Rugby World Cup,LT450,Fees For Services Received,5350,fanzone toilets,26/10/2015,409728,1340,NET,Prestige Toilet Hire,04437N
Gloucester City Council,23UE,Rugby World Cup,LT450,Fees For Services Received,5350,RWC fanzone marquees,26/10/2015,409716,3973,NET,Moben (Cheltenham) Limited,15845P
Gloucester City Council,23UE,Rugby World Cup,LT450,Fees For Services Received,5350,RWC Fanzone Safety & Production Manager,26/10/2015,409695,3550,NET,First Aid And Trauma Training,15988P
Gloucester City Council,23UE,Rugby World Cup,LT450,Fees For Services Received,5350,Various Items,26/10/2015,408976,8747,NET,Wernick Event Hire Ltd,15835T
Gloucester City Council,23UE,Tourism Marketing,LT100,Window Cleaning,3610,Window Cleaning August 2015,26/10/2015,409283,12,NET,Interserve Fs (Uk) Limited,00442K
Gloucester City Council,23UE,Cemeteries,HC300,Operational Materials,5070,CLEANING GOODS,27/10/2015,408660,9.35,NET,Acs Business Supplies Ltd,15791M
Gloucester City Council,23UE,City Museum And Art Gallery,LM200,Cleaning Materials,3600,CLEANING GOODS,27/10/2015,408660,104.24,NET,Acs Business Supplies Ltd,15791M
Gloucester City Council,23UE,City Museum Catering,LM202,Cleaning Materials,3600,CLEANING GOODS,27/10/2015,408660,179.62,NET,Acs Business Supplies Ltd,15791M
Gloucester City Council,23UE,Contact Centre,RB300,Postages,5400,Post 18/09 - 08/10 2015,27/10/2015,409347,1389.04,NET,Royal Mail S.Wales & South West,35830S
Gloucester City Council,23UE,Council Streetcare Team,HI101,Maint Of Grounds - General,3030,CLEANING GOODS,27/10/2015,408660,18.62,NET,Acs Business Supplies Ltd,15791M
Gloucester City Council,23UE,Countryside Unit,LP201,Cleaning Materials,3600,CLEANING GOODS,27/10/2015,408660,44.13,NET,Acs Business Supplies Ltd,15791M
Gloucester City Council,23UE,Crematorium,HC200,Cleaning Materials,3600,CLEANING GOODS,27/10/2015,408660,109.64,NET,Acs Business Supplies Ltd,15791M
Gloucester City Council,23UE,Crematorium,HC200,Repair/Maint Of Fixed Plant,3006,CLEANING GOODS,27/10/2015,408660,46.49,NET,Acs Business Supplies Ltd,15791M
Gloucester City Council,23UE,Docks Complex - Services,RB100,Cleaning Materials,3600,CLEANING GOODS,27/10/2015,408660,337.36,NET,Acs Business Supplies Ltd,15791M
Gloucester City Council,23UE,General Drainage Works,PY241,Contract Payments,20,signs,27/10/2015,409730,776.3,CAP,Severn Signs Ltd,49841D
Gloucester City Council,23UE,Gloucester Guildhall,LA100,Cleaning Materials,3600,CLEANING GOODS,27/10/2015,408660,147.32,NET,Acs Business Supplies Ltd,15791M
Gloucester City Council,23UE,Grants To Voluntary Sector,FG100,Members Allocation Fund,7100F,GRANT,27/10/2015,409804,500,NET,Mariners Church,16156M
Gloucester City Council,23UE,REDACTED,REDACTED,REDACTED,REDACTED,REDACTED,27/10/2015,REDACTED,430,NET,REDACTED,REDACTED
Gloucester City Council,23UE,Health And Safety,HD300,Hospitality,5122,ROOM HIRE 09/09/15,27/10/2015,409043,39.1,NET,Aspire Sports & Cultural Trust,08135V
Gloucester City Council,23UE,REDACTED,REDACTED,REDACTED,REDACTED,REDACTED,27/10/2015,REDACTED,489.44,NET,REDACTED,REDACTED
Gloucester City Council,23UE,REDACTED,REDACTED,REDACTED,REDACTED,REDACTED,27/10/2015,REDACTED,489.44,NET,REDACTED,REDACTED
Gloucester City Council,23UE,REDACTED,REDACTED,REDACTED,REDACTED,REDACTED,27/10/2015,REDACTED,530,NET,REDACTED,REDACTED
Gloucester City Council,23UE,Investment Property,RB500,General Repair/Maint Buildings,3000,SEPT15 works,27/10/2015,409729,25180.73,NET,Rf Gardiner Limited,12299B
Gloucester City Council,23UE,Legal Services,RS200,Fees For Services Received,5350,ONE LEGAL,27/10/2015,408666,4264,NET,Tewkesbury Borough Council,43800C
Gloucester City Council,23UE,REDACTED,REDACTED,REDACTED,REDACTED,REDACTED,27/10/2015,REDACTED,900,NET,REDACTED,REDACTED
Gloucester City Council,23UE,Nms Contract,HI102,Contracted Services,6970,Pension Recharge August 2015,27/10/2015,408747,10302.18,NET,Enterprise (Aol) Ltd,06695G
Gloucester City Council,23UE,Nms Contract,HI102,Contracted Services,6970,Pension Recharge June 2015,27/10/2015,406003,11104.79,NET,Enterprise (Aol) Ltd,06695G
Gloucester City Council,23UE,Nms Contract,HI102,Contracted Services,6970,PENSIONS JULY 2015,27/10/2015,407098,10348.2,NET,Enterprise (Aol) Ltd,06695G
Gloucester City Council,23UE,Nms Contract,HI102,Contracted Services,6970,PENSIONS SEPT 2015,27/10/2015,409452,10576.73,NET,Enterprise (Aol) Ltd,06695G
Gloucester City Council,23UE,Registration Of Electors,RS400,Stationery,5302,Response Envelopes,27/10/2015,409285,235,NET,Alpha Response Print & Mail Ltd,03029U
Gloucester City Council,23UE,Retail Market - Landlord,HM300,Cleaning Materials,3600,CLEANING GOODS,27/10/2015,408660,282,NET,Acs Business Supplies Ltd,15791M
Gloucester City Council,23UE,Tic Trading,LT110,Publications For Sale,5064,BOOKS,27/10/2015,409433,66.6,NET,Black Dwarf Lightmoor Publications Ltd,59484M
Gloucester City Council,23UE,Aspire Admin Charges,LC105,Other Minor Income,9900,refund,28/10/2015,409859,15,NET,Aspire Sports & Cultural Trust,08135V
Gloucester City Council,23UE,Council Streetcare Team,HI101,Signs / Nameplates,3039,Streetname Plates,28/10/2015,408560,442.2,NET,Enterprise (Aol) Ltd,06695G
Gloucester City Council,23UE,REDACTED,REDACTED,REDACTED,REDACTED,REDACTED,28/10/2015,REDACTED,1604.25,NET,REDACTED,REDACTED
Gloucester City Council,23UE,Retail Market - Landlord,HM300,Cleaning / Domestic Equipment,5011,Oct-15,28/10/2015,408081,18.93,NET,Initial Washroom Solutions,06143R
Gloucester City Council,23UE,Client Revs & Bens Contract,RT240,Fees For Services Received,5350,Recharge for Dukes Direct payment,29/10/2015,408885,300,NET,Civica Uk Ltd,10841X
Gloucester City Council,23UE,Client Revs & Bens Contract,RT240,Fees For Services Received,5350,Recharges for Dukes Direct payment,29/10/2015,408884,1155.83,NET,Civica Uk Ltd,10841X
Gloucester City Council,23UE,Contaminated Land,HE301,Fees For Services Received,5350,contaminated land work,29/10/2015,409718,2572.08,NET,Bromsgrove District Council,15037G
Gloucester City Council,23UE,Disabled Facilities Grants,CY013,Disabled Facility Grants,74,MDF5153 ,29/10/2015,409897,5011.55,CAP,Mears Home Improvement Ltd,00096G
Gloucester City Council,23UE,Disabled Facilities Grants,CY013,Disabled Facility Grants,74,MDF5155,29/10/2015,409898,3292.71,CAP,Mears Home Improvement Ltd,00096G
Gloucester City Council,23UE,Disabled Facilities Grants,CY013,Disabled Facility Grants,74,MDF5158,29/10/2015,409899,1358,CAP,Tpg Disableaids,51324R
Gloucester City Council,23UE,Planning Policy,PT300,Basic Pay - Temporary Staff,2751,temporary staff W/E 18/09/15,29/10/2015,408345,2281.55,NET,The Oyster Partnership Limited,14900T
Gloucester City Council,23UE,Planning Policy,PT300,Basic Pay - Temporary Staff,2751,temporary w/e 27/09/2015,29/10/2015,408732,2228.65,NET,The Oyster Partnership Limited,14900T
Gloucester City Council,23UE,Planning Policy,PT300,Basic Pay - Temporary Staff,2751,temporary staff w/e 11/10/15,29/10/2015,409260,2228.25,NET,The Oyster Partnership Limited,14900T
Gloucester City Council,23UE,Planning Policy,PT300,Basic Pay - Temporary Staff,2751,temporary staff w/e 13/9/15,29/10/2015,408044,2289.41,NET,The Oyster Partnership Limited,14900T
Gloucester City Council,23UE,Planning Policy,PT300,Basic Pay - Temporary Staff,2751,temporary staff w/e 4/10/15,29/10/2015,408941,2229.54,NET,The Oyster Partnership Limited,14900T
Gloucester City Council,23UE,Planning Policy,PT300,Basic Pay - Temporary Staff,2751,temporary staff w/e 6/9/15,29/10/2015,408045,2120.93,NET,The Oyster Partnership Limited,14900T
Gloucester City Council,23UE,Planning Policy,PT300,Basic Pay - Temporary Staff,2751,Temporary staff w/e 18/10/15,29/10/2015,409694,2351.07,NET,The Oyster Partnership Limited,14900T
Gloucester City Council,23UE,Tree Planting Grant Funded,LY150,Contract Payments,20,saws,29/10/2015,409725,46.75,CAP,Buxtons Ltd,05590U
Gloucester City Council,23UE,Unallocated It,RY525,Contract Payments,20,PSN WORKS,29/10/2015,409420,212.52,CAP,Civica Uk Ltd,10841X
Gloucester City Council,23UE,REDACTED,REDACTED,REDACTED,REDACTED,REDACTED,30/10/2015,REDACTED,50,NET,REDACTED,REDACTED
Gloucester City Council,23UE,Business Transformation & Tech,RT700,Computer Software Maintenance,5427,Focus CRM NOV15-NOV16 maintenance,30/10/2015,409557,2464,NET,Ash Information Systems Ltd,54890V
Gloucester City Council,23UE,Business Transformation & Tech,RT700,Lease Lines,5411,Leased Lines OCT15,30/10/2015,409084,4049.95,NET,Gamma Business Communications,10260A
Gloucester City Council,23UE,Business Transformation & Tech,RT700,Mobile Phones,5409,Apr-15,30/10/2015,407939,999,NET,Vodafone Ltd,11843H
Gloucester City Council,23UE,Business Transformation & Tech,RT700,Telephones And Fax,5410,Call Charges SEP15,30/10/2015,409085,2914.28,NET,Gamma Business Communications,10260A
Gloucester City Council,23UE,Cemeteries,HC300,Basic Pay - Temporary Staff,2751,temporary staff w/e 18/10/15,30/10/2015,409927,463.34,NET,Premiere Employment Group Ltd,55468Z
Gloucester City Council,23UE,Contact Centre,RB300,Stationery,5302,stationery,30/10/2015,409931,42.23,NET,Lyreco Uk Ltd,11746G
Gloucester City Council,23UE,Contact Centre,RB300,Uniforms,5201,staff uniform,30/10/2015,409932,78.48,NET,Meltemi Company Clothing Limited,54572N
Gloucester City Council,23UE,Democratic Services,RS100,Vocational Training,2970,2015/16 membership,30/10/2015,409922,47.5,NET,Association Of Electoral Administrators,03013K
Gloucester City Council,23UE,Economic Development,FP300,Business Grant,7116,Edmund Evans installation,30/10/2015,409918,200,NET,Cablestream Ltd,16128T
Gloucester City Council,23UE,Flooding And Drainage,HE306,Maint Of Grounds - General,3030,Savernake Rd works,30/10/2015,409929,1532.8,NET,Rdb Safety Boat Ltd,13507J
Gloucester City Council,23UE,General Drainage Works,PY241,Contract Payments,20,River Twyver headwall works St Oswalds,30/10/2015,409913,4000,CAP,Rj Contracting (Environmental) Ltd,07429H
Gloucester City Council,23UE,Grants To Voluntary Sector,FG100,Members Allocation Fund,7100F,Saintbridge Balancing Pool bench,30/10/2015,409938,384,NET,Greenfields Garden Services Ltd,48130G
Gloucester City Council,23UE,Green Garden Waste,HI105,Basic Pay - Temporary Staff,2751,Temporary staff w/e 16/10/15,30/10/2015,409912,1692.48,NET,One To One Recruitment,04752H
Gloucester City Council,23UE,Green Garden Waste,HI105,Basic Pay - Temporary Staff,2751,Temporary staff w/e 23/10/15,30/10/2015,409934,1415.62,NET,One To One Recruitment,04752H
Gloucester City Council,23UE,REDACTED,REDACTED,REDACTED,REDACTED,REDACTED,30/10/2015,REDACTED,1000,NET,REDACTED,REDACTED
Gloucester City Council,23UE,Homelessness,CH120,Board And Lodging,5515,SEP15 voids Nova House,30/10/2015,409923,1799.6,NET,Gloucester City Homes,05244T
Gloucester City Council,23UE,Pollution Control,HE300,Vocational Training,2970,Diploma in Acoustics & Noise,30/10/2015,409697,1600,NET,University Of Derby,16158H
Gloucester City Council,23UE,Shopmobility,PE200,Cleaning Materials,3600,NOV15 service,30/10/2015,409933,12.14,NET,Ocs Group Uk Limited T/A Cannon,06506A
Gloucester City Council,23UE,Townscape Heritage Initiative,LY145,Contract Payments,20,Training course fees,30/10/2015,409569,1450,CAP,Maintain Our Heritage,15811H
Gloucester City Council,23UE,Business Transformation & Tech,RT700,Computer Software <5000,5425,Information@Work software licence,,407411,9375,NET,Northgate Public Services Uk Ltd,08982S
Gloucester City Council,23UE,Business Transformation & Tech,RT700,Computer Software <5000,5425,Information@Work software support,,407410,9375,NET,Northgate Public Services Uk Ltd,08982S
Gloucester City Council,23UE,Business Transformation & Tech,RT700,Internet Service Provider Fees,5429,ACCT 505653401 FOLK MUSEUM,,409491,80,NET,Virgin Media Payments Ltd,09376J
Gloucester City Council,23UE,Business Transformation & Tech,RT700,Internet Service Provider Fees,5429,acct 510738303 lift line,,409073,16.99,NET,Virgin Media Payments Ltd,09376J
Gloucester City Council,23UE,Business Transformation & Tech,RT700,Internet Service Provider Fees,5429,ACCT 5107384102,,409074,33,NET,Virgin Media Payments Ltd,09376J
Gloucester City Council,23UE,Business Transformation & Tech,RT700,Internet Service Provider Fees,5429,ACCT 511159201,,409075,80,NET,Virgin Media Payments Ltd,09376J
Gloucester City Council,23UE,Business Transformation & Tech,RT700,Internet Service Provider Fees,5429,ACCT 513231401,,409071,39,NET,Virgin Media Payments Ltd,09376J
Gloucester City Council,23UE,Business Transformation & Tech,RT700,Internet Service Provider Fees,5429,Charges Oct - Nov 2015,,409346,30,NET,Virgin Media Payments Ltd,09376J
Gloucester City Council,23UE,Business Transformation & Tech,RT700,Mobile Phones,5409,Charges  October 2015,,409002,64.08,NET,Everything Everywhere Ltd (T-Mobile),57543S
Gloucester City Council,23UE,Business Transformation & Tech,RT700,Mobile Phones,5409,Charges September 2015,,408984,1288.08,NET,Everything Everywhere Ltd (T-Mobile),57543S
Gloucester City Council,23UE,Business Transformation & Tech,RT700,Telephones And Fax,5410,ACCT VP75978270,,409076,1123.44,NET,Bt Payment Services Ltd,56283E
Gloucester City Council,23UE,Business Transformation & Tech,RT700,Telephones And Fax,5410,call charges OCT15,,409731,191.75,NET,Virgin Media Business,01869B
Gloucester City Council,23UE,Cemeteries,HC300,Maint Of Grounds - General,3030,repairs to vases,,409973,120,NET,F J Cambridge & Co Ltd,48841N
Gloucester City Council,23UE,Cemeteries,HC300,Operational Materials,5070,safety spectacles,,409935,59.8,NET,Safpro Industrial Supply Co,39190W
Gloucester City Council,23UE,City Museum And Art Gallery,LM200,Operational Equipment <5000,5012,market stalls x 6 NOV/DEC15,,409628,190,NET,Glos City Centre Community Partnership,08705X
Gloucester City Council,23UE,Client Revs & Bens Contract,RT240,Bailiffs Fees,5368,VAT due on fees,,409958,0,NET,Bristow & Sutor,05450M
Gloucester City Council,23UE,Client Revs & Bens Contract,RT240,Bailiffs Fees,5368,VAT due on fees,,409959,0,NET,Bristow & Sutor,05450M
Gloucester City Council,23UE,Client Revs & Bens Contract,RT240,Fees For Services Received,5350,arrest warrant executions,,409971,99,NET,Assevarate Ltd,11749A
Gloucester City Council,23UE,Client Revs & Bens Contract,RT240,Fees For Services Received,5350,arrest warrant executions,,409972,148.5,NET,Assevarate Ltd,11749A
Gloucester City Council,23UE,Crematorium,HC200,Memorial Plaques,5053,wall plaque,,409915,107.7,NET,Treasured Memories Limited,11058H
Gloucester City Council,23UE,Docks Complex - Castlemeads Cp,RB210,Maint Of Grounds - General,3030,repair/secure gates & barriers,,409925,700,NET,J M Grail (General Engineering) Ltd,03204A
Gloucester City Council,23UE,Economic Development,FP300,Business Grant,7116,broadband voucher,,409967,2608.9,NET,Hatoforoi Limited,16161V
Gloucester City Council,23UE,Events,LT410,Events,5952,Gloucester Docks Firework event,,409713,5400,NET,Laser Hire,59139U
Gloucester City Council,23UE,Financial Services,RT200,Fees For Services Received,5350,blackfriars,,408080,158.61,NET,Chubb Fire & Security Ltd,54582K
Gloucester City Council,23UE,REDACTED,REDACTED,REDACTED,REDACTED,REDACTED,,REDACTED,522.5,CAP,REDACTED,REDACTED
Gloucester City Council,23UE,Grants To Voluntary Sector,FG100,Members Allocation Fund,7100F,supply & install goods at St Barnabas,,409962,833.33,NET,Custom Group,15523S
Gloucester City Council,23UE,Guildhall Events,LA200,Advertising And Publicity,5702,Explore Gloucestershire Xmas 2015,,409961,600,NET,Cds Publications,59644P
Gloucester City Council,23UE,REDACTED,REDACTED,REDACTED,REDACTED,REDACTED,,REDACTED,200,NET,REDACTED,REDACTED
Gloucester City Council,23UE,REDACTED,REDACTED,REDACTED,REDACTED,REDACTED,,REDACTED,250,NET,REDACTED,REDACTED
Gloucester City Council,23UE,Guildhall Events,LA200,Hire Of Equipment,5020,Underground Festival backline hire,,409963,500,NET,Jamie Mckivitt T/A Witney Music Studios,14959G
Gloucester City Council,23UE,Homelessness,CH120,Fees For Services Received,5350,medical report,,409974,38.5,NET,Partners In Health,06868K
Gloucester City Council,23UE,Homelessness,CH120,Removal And Storage Fees,5513,Temporary storage,,409977,165.57,NET,Advanced Removals & Storage Ltd,57142R
Gloucester City Council,23UE,Homelessness,CH120,Removal And Storage Fees,5513,temporary storage,,409976,112.5,NET,Advanced Removals & Storage Ltd,57142R
Gloucester City Council,23UE,Investment Property,RB500,Water Supply,3400,ACCT 3850500126,,408225,5370.3,NET,Severn Trent Water,01823H
Gloucester City Council,23UE,Investment Property,RB500,Water Supply,3400,ACCT 6540022682,,408431,309.48,NET,Severn Trent Water,01823H
Gloucester City Council,23UE,Off Street Car Parks,PP110,Fees For Services Received,5350,services for parking equipment,,409720,514.06,NET,Parkeon Ltd,03238G
Gloucester City Council,23UE,Planning Policy,PT300,Fees For Services Received,5350,contribution to CIL project,,409970,65000,NET,Cheltenham Borough Council,04176B
Gloucester City Council,23UE,Pollution Control,HE300,Fees For Services Received,5350,Redpoll Way works,,409928,90,NET,Rdb Safety Boat Ltd,13507J
Gloucester City Council,23UE,Public Conveniences (Client),HI400,Contracted Services,6970,Toilet Scheme September 2015,,408575,300,NET,The Cross Keys,11165K
Gloucester City Council,23UE,Rehousing,CH111,Fees For Services Received,5350,Medical report,,409975,20.5,NET,Rosebank Health,03041E
Gloucester City Council,23UE,Rugby World Cup,LT450,Fees For Services Received,5350,RWC fanzone plant,,409722,900,NET,Ermin Plant Hire & Services Ltd,14150V
Gloucester City Council,23UE,Utilities,PT502,Electricity Supply,3110,ROMAN EXCAVATIONS,,408070,70.65,NET,Southern Electric,05714A
Gloucester City Council,23UE,Utilities,PT502,Electricity Supply,3110,ROMAN EXCAVATIONS,,408071,83.3,NET,Southern Electric,05714A
Gloucester City Council,23UE,Vehicles,RS140,Fuel,4012,fuel,,409910,108.81,NET,Allstar Business Solutions Ltd (Arval),06594A
,,,,,,,,Sum:,9160467.01,,,
